Workbook

Sheet K-Z
A1: 2023 | B1: Dolar : | C1: =VALUE(RIGHT(Anlık!A26,(LEN(Anlık!A26)-6))) -> 26.9829 | D1: GÜNCEL LOT | E1: TOPLAM TUTAR | G1: GÜNCEL TUTAR | I1: BUGÜN K/ Z | J1: TOPLAM KAR / ZARAR | L1: TOPLAM MALİYET | M1: =(N2-L2)/L2 -> 0.4473209993 | N1: TOPLAM VARLIK
B2: Altın : | C2: =VALUE(RIGHT(Anlık!A23,(LEN(Anlık!A23)-11))) -> 1669.16 | D2: =SUM(D4:D30) -> 933 | E2: =SUM(F4:F30) -> 23842.603 | G2: =SUM(I4:I30) -> 34507.9 | I2: =J2-OFFSET(GRAFIK!B1,COUNTA(GRAFIK!B:B)-1,0) -> 749.657 | J2: =G2-E2 -> 10665.297 | K2: =J2/E2 -> 0.4473209993 | L2: =E2+L33+L36 -> 23842.603 | M2: =N2-L2 -> 10665.297 | N2: =G2++N33+N36 -> 34507.9
A3: DÜN K/Z ₺ | B3: BUGÜN KAZANÇ | C3: HİSSE | D3: GÜNCEL LOT | E3: ORT. MALİYET | F3: MALİYET TOPLAM | G3: BUGÜN ANLIK % | H3: BUGÜN ANLIK ₺ | I3: ANLIK TUTAR | J3: K/Z TL | K3: K/Z % | L3: Portföy Oranı | M3: DOLAR DA | N3: ALTIN DA
A4: =ROUNDDOWN(INDEX(GUNLUK!B:B,COUNTA(GUNLUK!B:B)),2) -> 6753.64 | B4: =ROUNDDOWN(J4-A4,2) -> 704.11 | C4: HALKA ARZ | D4: =HALKARZ!E2 -> 300 | E4: =F4/D4 -> 22.90862667 | F4: =HALKARZ!F2 -> 6872.588 | G4: =HALKARZ!L2 -> 1.085144635 | H4: =I4/D4 -> 47.7678 | I4: =HALKARZ!H2 -> 14330.34 | J4: =I4-F4 -> 7457.752 | K4: =HALKARZ!L2 -> 1.085144635 | L4: =(F4/SUM($F$4:$F$23)) -> 0.2882482252 | M4: =(SUMIF(Kayıt!B:B,C4,Kayıt!H:H)*$C$1-F4)/F4 -> -1 | N4: =(SUMIF(Kayıt!B:B,C4,Kayıt!I:I)*$C$2-F4)/F4 -> -1
A5: =ROUNDDOWN(INDEX(GUNLUK!C:C,COUNTA(GUNLUK!C:C)),2) -> 143.2 | B5: =ROUNDDOWN(J5-A5,2) -> -5.99 | C5: DOAS | D5: =SUMIF(Kayıt!B:B,C5,Kayıt!C:C) -> 4 | E5: 235.3 | F5: =SUMIF(Kayıt!B:B,C5,Kayıt!E:E) -> 941.2 | G5: =VLOOKUP(C5,Anlık!A:F,6,FALSE) -> -0.0055 | H5: =VLOOKUP(C5,Anlık!A:B,2,FALSE) -> 269.6 | I5: =H5*D5 -> 1078.4 | J5: 137.2 | K5: =(H5-E5)/E5 -> 0.1457713557 | L5: =(F5/SUM($F$4:$F$23)) -> 0.03947555558 | M5: =(SUMIF(Kayıt!B:B,C5,Kayıt!H:H)*$C$1-F5)/F5 -> 0.006824626866 | N5: =(SUMIF(Kayıt!B:B,C5,Kayıt!I:I)*$C$2-F5)/F5 -> -0.01233136095
A6: =ROUNDDOWN(INDEX(GUNLUK!D:D,COUNTA(GUNLUK!D:D)),2) -> -12.08 | B6: 18.19 | C6: VESBE | D6: =SUMIF(Kayıt!B:B,C6,Kayıt!C:C) -> 65 | E6: 16.206 | F6: =SUMIF(Kayıt!B:B,C6,Kayıt!E:E) -> 1053.39 | G6: =VLOOKUP(C6,Anlık!A:F,6,FALSE) -> 0.0175 | H6: =VLOOKUP(C6,Anlık!A:B,2,FALSE) -> 16.3 | I6: 1059.5 | J6: 6.11 | K6: 0.005800320869 | L6: 0.04418099819 | M6: =(SUMIF(Kayıt!B:B,C6,Kayıt!H:H)*$C$1-F6)/F6 -> 0.006824626866 | N6: =(SUMIF(Kayıt!B:B,C6,Kayıt!I:I)*$C$2-F6)/F6 -> -0.01233136095
A7: =ROUNDDOWN(INDEX(GUNLUK!E:E,COUNTA(GUNLUK!E:E)),2) -> 371.74 | B7: 3.75 | C7: BRISA | D7: =SUMIF(Kayıt!B:B,C7,Kayıt!C:C) -> 15 | E7: 65.617 | F7: =SUMIF(Kayıt!B:B,C7,Kayıt!E:E) -> 984.255 | G7: =VLOOKUP(C7,Anlık!A:F,6,FALSE) -> 0.0028 | H7: =VLOOKUP(C7,Anlık!A:B,2,FALSE) -> 90.65 | I7: 1359.75 | J7: 375.495 | K7: 0.381501745 | L7: 0.04128135674 | M7: =(SUMIF(Kayıt!B:B,C7,Kayıt!H:H)*$C$1-F7)/F7 -> 0.006824626866 | N7: =(SUMIF(Kayıt!B:B,C7,Kayıt!I:I)*$C$2-F7)/F7 -> -0.01233136095
A8: =ROUNDDOWN(INDEX(GUNLUK!F:F,COUNTA(GUNLUK!F:F)),2) -> 183.68 | B8: -12.16 | C8: NTGAZ | D8: =SUMIF(Kayıt!B:B,C8,Kayıt!C:C) -> 64 | E8: 15.23 | F8: =SUMIF(Kayıt!B:B,C8,Kayıt!E:E) -> 974.72 | G8: =VLOOKUP(C8,Anlık!A:F,6,FALSE) -> -0.0105 | H8: =VLOOKUP(C8,Anlık!A:B,2,FALSE) -> 17.91 | I8: 1146.24 | J8: 171.52 | K8: 0.1759684833 | L8: 0.04088144235 | M8: =(SUMIF(Kayıt!B:B,C8,Kayıt!H:H)*$C$1-F8)/F8 -> 0.006824626866 | N8: =(SUMIF(Kayıt!B:B,C8,Kayıt!I:I)*$C$2-F8)/F8 -> -0.01233136095
A9: =ROUNDDOWN(INDEX(GUNLUK!G:G,COUNTA(GUNLUK!G:G)),2) -> 561.74 | B9: -32.99 | C9: TUPRS | D9: =SUMIF(Kayıt!B:B,C9,Kayıt!C:C) -> 11 | E9: 93.432 | F9: =SUMIF(Kayıt!B:B,C9,Kayıt!E:E) -> 1027.752 | G9: =VLOOKUP(C9,Anlık!A:F,6,FALSE) -> -0.0208 | H9: =VLOOKUP(C9,Anlık!A:B,2,FALSE) -> 141.5 | I9: 1556.5 | J9: 528.748 | K9: 0.514470417 | L9: 0.04310569614 | M9: =(SUMIF(Kayıt!B:B,C9,Kayıt!H:H)*$C$1-F9)/F9 -> 0.006824626866 | N9: =(SUMIF(Kayıt!B:B,C9,Kayıt!I:I)*$C$2-F9)/F9 -> -0.01233136095
A10: =ROUNDDOWN(INDEX(GUNLUK!H:H,COUNTA(GUNLUK!H:H)),2) -> 526.3 | B10: 59 | C10: AKCNS | D10: =SUMIF(Kayıt!B:B,C10,Kayıt!C:C) -> 10 | E10: 100.77 | F10: =SUMIF(Kayıt!B:B,C10,Kayıt!E:E) -> 1007.7 | G10: =VLOOKUP(C10,Anlık!A:F,6,FALSE) -> 0.0385 | H10: =VLOOKUP(C10,Anlık!A:B,2,FALSE) -> 159.3 | I10: 1593 | J10: 585.3 | K10: 0.5808276273 | L10: 0.04226468058 | M10: =(SUMIF(Kayıt!B:B,C10,Kayıt!H:H)*$C$1-F10)/F10 -> 0.006824626866 | N10: =(SUMIF(Kayıt!B:B,C10,Kayıt!I:I)*$C$2-F10)/F10 -> -0.01233136095
A11: =ROUNDDOWN(INDEX(GUNLUK!I:I,COUNTA(GUNLUK!I:I)),2) -> 223.46 | B11: -42 | C11: ENJSA | D11: =SUMIF(Kayıt!B:B,C11,Kayıt!C:C) -> 20 | E11: 41.127 | F11: =SUMIF(Kayıt!B:B,C11,Kayıt!E:E) -> 822.54 | G11: =VLOOKUP(C11,Anlık!A:F,6,FALSE) -> -0.0402 | H11: =VLOOKUP(C11,Anlık!A:B,2,FALSE) -> 50.2 | I11: 1004 | J11: =I11-F11 -> 181.46 | K11: =(H11-E11)/E11 -> 0.2206093321 | L11: 0.03449874999 | M11: =(SUMIF(Kayıt!B:B,C11,Kayıt!H:H)*$C$1-F11)/F11 -> 0.006824626866 | N11: =(SUMIF(Kayıt!B:B,C11,Kayıt!I:I)*$C$2-F11)/F11 -> -0.01233136095
A12: =ROUNDDOWN(INDEX(GUNLUK!J:J,COUNTA(GUNLUK!J:J)),2) -> 138.49 | B12: -0.69 | C12: ALKA | D12: =SUMIF(Kayıt!B:B,C12,Kayıt!C:C) -> 35 | E12: 28.623 | F12: =SUMIF(Kayıt!B:B,C12,Kayıt!E:E) -> 1001.805 | G12: =VLOOKUP(C12,Anlık!A:F,6,FALSE) -> -0.0006 | H12: =VLOOKUP(C12,Anlık!A:B,2,FALSE) -> 32.56 | I12: 1139.6 | J12: 137.795 | K12: 0.1375467282 | L12: 0.04201743409 | M12: =(SUMIF(Kayıt!B:B,C12,Kayıt!H:H)*$C$1-F12)/F12 -> 0.006824626866 | N12: =(SUMIF(Kayıt!B:B,C12,Kayıt!I:I)*$C$2-F12)/F12 -> -0.01233136095
A13: =ROUNDDOWN(INDEX(GUNLUK!K:K,COUNTA(GUNLUK!K:K)),2) -> 220.03 | B13: -43.04 | C13: SISE | D13: =SUMIF(Kayıt!B:B,C13,Kayıt!C:C) -> 21 | E13: 46.122 | F13: =SUMIF(Kayıt!B:B,C13,Kayıt!E:E) -> 968.562 | G13: =VLOOKUP(C13,Anlık!A:F,6,FALSE) -> -0.0362 | H13: =VLOOKUP(C13,Anlık!A:B,2,FALSE) -> 54.55 | I13: 1145.55 | J13: 176.988 | K13: 0.1827327523 | L13: 0.04062316518 | M13: =(SUMIF(Kayıt!B:B,C13,Kayıt!H:H)*$C$1-F13)/F13 -> 0.006824626866 | N13: =(SUMIF(Kayıt!B:B,C13,Kayıt!I:I)*$C$2-F13)/F13 -> -0.01233136095
A14: =ROUNDDOWN(INDEX(GUNLUK!L:L,COUNTA(GUNLUK!L:L)),2) -> 696.93 | B14: 25.2 | C14: ISMEN | D14: =SUMIF(Kayıt!B:B,C14,Kayıt!C:C) -> 84 | E14: 27.96316667 | F14: =SUMIF(Kayıt!B:B,C14,Kayıt!E:E) -> 2348.906 | G14: =VLOOKUP(C14,Anlık!A:F,6,FALSE) -> 0.0083 | H14: =VLOOKUP(C14,Anlık!A:B,2,FALSE) -> 36.56 | I14: 3071.04 | J14: 722.134 | K14: 0.3074341843 | L14: 0.09851717952 | M14: =(SUMIF(Kayıt!B:B,C14,Kayıt!H:H)*$C$1-F14)/F14 -> 0.006824626866 | N14: =(SUMIF(Kayıt!B:B,C14,Kayıt!I:I)*$C$2-F14)/F14 -> -0.01233136095
A15: =ROUNDDOWN(INDEX(GUNLUK!M:M,COUNTA(GUNLUK!M:M)),2) -> 175.63 | B15: -0.53 | C15: EREGL | D15: =SUMIF(Kayıt!B:B,C15,Kayıt!C:C) -> 27 | E15: 37.515 | F15: =SUMIF(Kayıt!B:B,C15,Kayıt!E:E) -> 1012.905 | G15: =VLOOKUP(C15,Anlık!A:F,6,FALSE) -> -0.0005 | H15: =VLOOKUP(C15,Anlık!A:B,2,FALSE) -> 44 | I15: 1188 | J15: 175.095 | K15: 0.1728641877 | L15: 0.04248298728 | M15: =(SUMIF(Kayıt!B:B,C15,Kayıt!H:H)*$C$1-F15)/F15 -> 0.006824626866 | N15: =(SUMIF(Kayıt!B:B,C15,Kayıt!I:I)*$C$2-F15)/F15 -> -0.01233136095
A16: =ROUNDDOWN(INDEX(GUNLUK!N:N,COUNTA(GUNLUK!N:N)),2) -> -52.42 | B16: -0.79 | C16: HEKTS | D16: =SUMIF(Kayıt!B:B,C16,Kayıt!C:C) -> 2 | E16: =F16/D16 -> 51.25 | F16: =SUMIF(Kayıt!B:B,C16,Kayıt!E:E) -> 102.5 | G16: =VLOOKUP(C16,Anlık!A:F,6,FALSE) -> -0.016 | H16: =VLOOKUP(C16,Anlık!A:B,2,FALSE) -> 24.64 | I16: =H16*D16 -> 49.28 | J16: =I16-F16 -> -53.22 | K16: =(H16-E16)/E16 -> -0.5192195122 | L16: =(F16/SUM($F$4:$F$23)) -> 0.00429902725 | M16: =(SUMIF(Kayıt!B:B,C16,Kayıt!H:H)*$C$1-F16)/F16 -> 0.006824626866 | N16: =(SUMIF(Kayıt!B:B,C16,Kayıt!I:I)*$C$2-F16)/F16 -> -0.01233136095
A17: =ROUNDDOWN(INDEX(GUNLUK!O:O,COUNTA(GUNLUK!O:O)),2) -> -120.23 | B17: 0.55 | C17: HUNER | D17: =SUMIF(Kayıt!B:B,C17,Kayıt!C:C) -> 55 | E17: 10.596 | F17: =SUMIF(Kayıt!B:B,C17,Kayıt!E:E) -> 582.78 | G17: =VLOOKUP(C17,Anlık!A:F,6,FALSE) -> 0.0012 | H17: =VLOOKUP(C17,Anlık!A:B,2,FALSE) -> 8.42 | I17: 463.1 | J17: -119.68 | K17: -0.2053605134 | L17: 0.02444280098 | M17: =(SUMIF(Kayıt!B:B,C17,Kayıt!H:H)*$C$1-F17)/F17 -> 0.006824626866 | N17: =(SUMIF(Kayıt!B:B,C17,Kayıt!I:I)*$C$2-F17)/F17 -> -0.01233136095
A18: =ROUNDDOWN(INDEX(GUNLUK!P:P,COUNTA(GUNLUK!P:P)),2) -> 74.6 | B18: -1.99 | C18: ZOREN | D18: =SUMIF(Kayıt!B:B,C18,Kayıt!C:C) -> 100 | E18: 4.064 | F18: =SUMIF(Kayıt!B:B,C18,Kayıt!E:E) -> 406.4 | G18: =VLOOKUP(C18,Anlık!A:F,6,FALSE) -> -0.0042 | H18: =VLOOKUP(C18,Anlık!A:B,2,FALSE) -> 4.79 | I18: 479 | J18: 72.6 | K18: 0.1786417323 | L18: 0.01704511877 | M18: =(SUMIF(Kayıt!B:B,C18,Kayıt!H:H)*$C$1-F18)/F18 -> 0.006824626866 | N18: =(SUMIF(Kayıt!B:B,C18,Kayıt!I:I)*$C$2-F18)/F18 -> -0.01233136095
A19: =ROUNDDOWN(INDEX(GUNLUK!Q:Q,COUNTA(GUNLUK!Q:Q)),2) -> -30 | B19: -21 | C19: BIOEN | D19: =SUMIF(Kayıt!B:B,C19,Kayıt!C:C) -> 50 | E19: =F19/D19 -> 21.1 | F19: =SUMIF(Kayıt!B:B,C19,Kayıt!E:E) -> 1055 | G19: =VLOOKUP(C19,Anlık!A:F,6,FALSE) -> -0.0205 | H19: =VLOOKUP(C19,Anlık!A:B,2,FALSE) -> 20.08 | I19: =H19*D19 -> 1004 | J19: =I19-F19 -> -51 | K19: =(H19-E19)/E19 -> -0.04834123223 | L19: =(F19/SUM($F$4:$F$23)) -> 0.04424852437 | M19: =(SUMIF(Kayıt!B:B,C19,Kayıt!H:H)*$C$1-F19)/F19 -> 0.006824626866 | N19: =(SUMIF(Kayıt!B:B,C19,Kayıt!I:I)*$C$2-F19)/F19 -> -0.01233136095
A20: =ROUNDDOWN(INDEX(GUNLUK!R:R,COUNTA(GUNLUK!R:R)),2) -> 93.1 | B20: 138.6 | C20: ELITE | D20: =SUMIF(Kayıt!B:B,C20,Kayıt!C:C) -> 35 | E20: 36.94 | F20: =SUMIF(Kayıt!B:B,C20,Kayıt!E:E) -> 1292.9 | G20: =VLOOKUP(C20,Anlık!A:F,6,FALSE) -> 0.1 | H20: =VLOOKUP(C20,Anlık!A:B,2,FALSE) -> 43.56 | I20: 1524.6 | J20: 231.7 | K20: 0.179209529 | L20: 0.05422646177 | M20: =(SUMIF(Kayıt!B:B,C20,Kayıt!H:H)*$C$1-F20)/F20 -> 0.006824626866 | N20: =(SUMIF(Kayıt!B:B,C20,Kayıt!I:I)*$C$2-F20)/F20 -> -0.01233136095
A21: =ROUNDDOWN(INDEX(GUNLUK!S:S,COUNTA(GUNLUK!S:S)),2) -> -32.19 | B21: -38.5 | C21: AKSEN | D21: =SUMIF(Kayıt!B:B,C21,Kayıt!C:C) -> 35 | E21: =F21/D21 -> 39.62 | F21: =SUMIF(Kayıt!B:B,C21,Kayıt!E:E) -> 1386.7 | G21: =VLOOKUP(C21,Anlık!A:F,6,FALSE) -> -0.0284 | H21: =VLOOKUP(C21,Anlık!A:B,2,FALSE) -> 37.6 | I21: =H21*D21 -> 1316 | J21: =I21-F21 -> -70.7 | K21: =(H21-E21)/E21 -> -0.05098435134 | L21: =(F21/SUM($F$4:$F$23)) -> 0.05816059597 | M21: =(SUMIF(Kayıt!B:B,C21,Kayıt!H:H)*$C$1-F21)/F21 -> 0.006824626866 | N21: =(SUMIF(Kayıt!B:B,C21,Kayıt!I:I)*$C$2-F21)/F21 -> -0.01233136095
A22: =ROUNDDOWN(INDEX(GUNLUK!T:T,COUNTA(GUNLUK!T:T)),2) -> 0 | B22: 0
A23: =ROUNDDOWN(INDEX(GUNLUK!U:U,COUNTA(GUNLUK!U:U)),2) -> 0 | B23: 0
A24: =ROUNDDOWN(INDEX(GUNLUK!V:V,COUNTA(GUNLUK!V:V)),2) -> 0 | B24: 0
A25: =ROUNDDOWN(INDEX(GUNLUK!W:W,COUNTA(GUNLUK!W:W)),2) -> 0 | B25: 0
A26: =ROUNDDOWN(INDEX(GUNLUK!X:X,COUNTA(GUNLUK!X:X)),2) -> 0 | B26: 0
A27: =ROUNDDOWN(INDEX(GUNLUK!Y:Y,COUNTA(GUNLUK!Y:Y)),2) -> 0 | B27: 0
A28: =ROUNDDOWN(INDEX(GUNLUK!Z:Z,COUNTA(GUNLUK!Z:Z)),2) -> 0 | B28: 0
A29: =ROUNDDOWN(INDEX(GUNLUK!AA:AA,COUNTA(GUNLUK!AA:AA)),2) -> 0 | B29: 0
A30: TOPLAM | D30: TP TUTAR | E30: TP K / Z | F30: TP K/ Z % | G30: GÜNLÜK K/Z | H30: BİST-100 E GÖRE PORTFÖY BÜYÜME %
A31: =SUM(A4:A29) -> 9915.62 | B31: =SUM(B4:B29) -> 749.72 | C31: DÜN PORTFÖY | D31: =INDEX(GRAFIK!L:L,COUNTA(GRAFIK!L:L)+1) -> 33758.24 | E31: =INDEX(GRAFIK!B:B,COUNTA(GRAFIK!B:B)) -> 9915.64 | F31: =INDEX(GRAFIK!E:E,COUNTA(GRAFIK!E:E)) -> 0.4158789625 | G31: =ROUNDDOWN(INDEX(GRAFIK!B:B,COUNTA(GRAFIK!B:B)),2)-ROUNDDOWN(INDEX(GRAFIK!B:B,COUNTA(GRAFIK!B:B)-1),2) -> -440.76 | H31: BİST-100 | I31: =VALUE(SUBSTITUTE(RIGHT(Anlık!A35,8),".","")) -> 7961.98 | J31: =VALUE(RIGHT(Anlık!A36,9)) -> -0.0193
A32: ALTIN | C32: BUGÜN PORTFÖY | D32: =G2 -> 34507.9 | E32: =J2 -> 10665.297 | F32: =K2 -> 0.4473209993 | G32: =B31 -> 749.72 | H32: PORTFÖY | I32: =B31/D31 -> 0.02220850376 | L32: TOPLAM TUTAR | M32: KAR / ZARAR | N32: GÜNCEL TUTAR
B33: Eski | C33: VAKIFBANK ALTIN | D33: =SUMIF(AltınDolar!B:B,C33,AltınDolar!C:C) -> 0 | E33: =F33/D33 ->  | F33: =SUMIF(AltınDolar!B:B,C33,AltınDolar!E:E) -> 0 | G33: =H33-OFFSET(GRAFIK!I2,COUNTA(GRAFIK!I:I)-1,0) -> 14.47 | H33: =C2 -> 1669.16 | I33: =H33*D33 -> 0 | J33: =I33-F33 -> 0 | K33: =(H33-E33)/E33 ->  | L33: =F33+F34 -> 0 | M33: =J33+J34 -> 0 | N33: =I33+I34 -> 0
B34: Portföy | C34: HALKBANK ALTIN | D34: =SUMIF(AltınDolar!B:B,C34,AltınDolar!C:C) -> 0 | E34: =F34/D34 ->  | F34: =SUMIF(AltınDolar!B:B,C34,AltınDolar!E:E) -> 0 | G34: =H34-OFFSET(GRAFIK!I2,COUNTA(GRAFIK!I:I)-1,0) -> 14.47 | H34: =C2 -> 1669.16 | I34: =H34*D34 -> 0 | J34: =I34-F34 -> 0 | K34: =(H34-E34)/E34 ->  | L34: =D33+D34 &" Gr" -> 0 Gr | M34: =M33/L33 -> 
A35: DOLAR | E35: 44585 | L35: TOPLAM TUTAR | M35: KAR / ZARAR | N35: GÜNCEL TUTAR
B36: Portföy | C36: HALKBANK DOLAR | D36: =SUMIF(AltınDolar!B:B,C36,AltınDolar!C:C) -> 0 | E36: =F36/D36 ->  | F36: =SUMIF(AltınDolar!B:B,C36,AltınDolar!E:E) -> 0 | G36: =H36-OFFSET(GRAFIK!H2,COUNTA(GRAFIK!I:I)-1,0) -> 0.0429 | H36: =C1 -> 26.9829 | I36: =H36*D36 -> 0 | J36: =I36-F36 -> 0 | K36: =(I36-F36)/F36 ->  | L36: =F36 -> 0 | M36: =N36-L36 -> 0 | N36: =I36 -> 0
L37: =D36&" $" -> 0 $ | M37: =M36/L36 -> 
C38: Hisse Alımı | G38: AYLIK ALIM TOPLAMI (2023) | K38: Anapara | L38: Hisse | M38: Dolar $ | N38: Altın GR
C39: Tarih | E39: 2023-06-30 | G39: OCAK | H39: =SUMIFS(Kayıt!$E:$E,Kayıt!$A:$A,">=01/01/2023",Kayıt!$A:$A,"<=31/01/2023") -> 0 | I39: TEMMUZ | J39: =SUMIFS(Kayıt!$E:$E,Kayıt!$A:$A,">=01/07/2023",Kayıt!$A:$A,"<=31/07/2023") -> 12868.175 | K39: =E2 -> 23842.603 | L39: =G2 -> 34507.9 | M39: =M42*C1 -> 18069.95982 | N39: =N42*C2 -> 17726.15821
A40: BİST | C40: Hisse Seçin | D40: Adet | E40: Birim Fiyat | F40: Tutar | G40: ŞUBAT | H40: =SUMIFS(Kayıt!$E:$E,Kayıt!$A:$A,">=01/02/2023",Kayıt!$A:$A,"<=28/02/2023") -> 0 | I40: AĞUSTOS | J40: =SUMIFS(Kayıt!$E:$E,Kayıt!$A:$A,">=01/08/2023",Kayıt!$A:$A,"<=31/08/2023") -> 0 | K40: Kar / Zarar | L40: =L39-E2 -> 10665.297 | M40: =M39-E2 -> -5772.64318 | N40: =N39-E2 -> -6116.444792
A41: =RIGHT(Anlık!A35,8) -> 7.961,98 | F41: =IF(D41,D41*E41,"") ->  | G41: MART | H41: =SUMIFS(Kayıt!$E:$E,Kayıt!$A:$A,">=01/03/2023",Kayıt!$A:$A,"<=31/03/2023") -> 0 | I41: EYLÜL | J41: =SUMIFS(Kayıt!$E:$E,Kayıt!$A:$A,">=01/09/2023",Kayıt!$A:$A,"<=30/09/2023") -> 5079.3 | K41: % | L41: =L40/K39 -> 0.4473209993 | M41: =M40/K39 -> -0.2421146374 | N41: =N40/K39 -> -0.2565342715
C42: * ALIŞ : Adet ve Birim Fiyatını Yazınız. *SATIŞ: Lot sayısının başına (-) ekleyiniz. | G42: NİSAN | H42: =SUMIFS(Kayıt!$E:$E,Kayıt!$A:$A,">=01/04/2023",Kayıt!$A:$A,"<=30/04/2023") -> 0 | I42: EKİM | J42: =SUMIFS(Kayıt!$E:$E,Kayıt!$A:$A,">=01/10/2023",Kayıt!$A:$A,"<=31/10/2023") -> 0 | K42: Adet | L42: =D2 -> 933 | M42: =SUM(Kayıt!H:H) -> 669.681903 | N42: =SUM(Kayıt!I:I) -> 10.61980769
A43: =VALUE(RIGHT(Anlık!A36,9)) -> -0.0193 | G43: MAYIS | H43: =SUMIFS(Kayıt!$E:$E,Kayıt!$A:$A,">=01/05/2023",Kayıt!$A:$A,"<=31/05/2023") -> 0 | I43: KASIM | J43: =SUMIFS(Kayıt!$E:$E,Kayıt!$A:$A,">=01/11/2023",Kayıt!$A:$A,"<=30/11/2023") -> 0
G44: HAZİRAN | H44: =SUMIFS(Kayıt!$E:$E,Kayıt!$A:$A,">=01/06/2023",Kayıt!$A:$A,"<=30/06/2023") -> 0 | I44: ARALIK | J44: =SUMIFS(Kayıt!$E:$E,Kayıt!$A:$A,">=01/12/2023",Kayıt!$A:$A,"<=31/12/2023") -> 0
A45: Yıllık Eklenen Paraya Göre Kar / Zarar Durumu | C45: YILLAR | D45: 2021 | E45: 2022 | F45: 2023 | G45: 2024 | H45: 2025 | I45: 2026 | J45: 2027 | K45: 2028 | L45: 2029 | M45: 2030 | N45: 2031
C46: EKLENEN PARA | D46: =SUMIFS(Kayıt!E:E,Kayıt!A:A,">=01/01/2021",Kayıt!A:A,"<=31/12/2021") -> 0 | E46: =SUMIFS(Kayıt!E:E,Kayıt!A:A,">=01/01/2022",Kayıt!A:A,"<=31/12/2022") -> 0 | F46: =SUMIFS(Kayıt!$E:$E,Kayıt!$A:$A,">=01/01/2023",Kayıt!$A:$A,"<=31/12/2023") -> 17947.475 | G46: =SUMIFS(Kayıt!$E:$E,Kayıt!$A:$A,">=01/01/2024",Kayıt!$A:$A,"<=31/12/2024") -> 0
C47: KAR / ZARAR | D47: =SUMIFS(Kayıt!K:K,Kayıt!A:A,">=01/01/2021",Kayıt!A:A,"<=31/12/2021") -> 0 | E47: =SUMIFS(Kayıt!K:K,Kayıt!A:A,">=01/01/2022",Kayıt!A:A,"<=31/12/2022") -> 0 | F47: =SUMIFS(Kayıt!$K:$K,Kayıt!$A:$A,">=01/01/2023",Kayıt!$A:$A,"<=31/12/2023") -> 4096.785 | G47: =SUMIFS(Kayıt!$K:$K,Kayıt!$A:$A,">=01/01/2024",Kayıt!$A:$A,"<=31/12/2024") -> 0
C48: Hisse % Kar | D48: =D47/D46 ->  | E48: =E47/E46 ->  | F48: 0.2282652574 | G48: =G47/G46 -> 

Sheet GUNLUK
A1: GÜN | B1: HALKA ARZ | C1: DOAS | D1: VESBE | E1: BRISA | F1: NTGAZ | G1: TUPRS | H1: AKCNS | I1: ENJSA | J1: ALKA | K1: SISE | L1: ISMEN | M1: EREGL | N1: HEKTS | O1: HUNER | P1: ZOREN | Q1: BIOEN | R1: ELITE | S1: AKSEN
A2: 2023-09-14 | B2: 6753.642 | C2: 143.2 | D2: -12.09 | E2: 371.745 | F2: 183.68 | G2: 561.748 | H2: 526.3 | I2: 223.46 | J2: 138.495 | K2: 220.038 | L2: 696.934 | M2: 175.635 | N2: -52.42 | O2: -120.23 | P2: 74.6 | Q2: -30 | R2: 93.1 | S2: -32.2

Sheet HALKARZ
A1: HALKA ARZ | C1: Dolar : | D1: ='K-Z'!C1 -> 26.9829 | E1: GÜNCEL LOT | F1: TOPLAM TUTAR | H1: GÜNCEL TUTAR | J1: TOPLAM ARZ K/ Z | K1: TOPLAM KAR / ZARAR
A2: ALIM | C2: Altın : | D2: ='K-Z'!C2 -> 1669.16 | E2: =SUM(D4:D54) -> 300 | F2: =SUM(F4:F54) -> 6872.588 | H2: =SUM(I4:I54) -> 14330.34 | J2: =H2-F2 -> 7457.752 | K2: =H2-F2 -> 7457.752 | L2: =IFERROR(K2/F2,"0") -> 1.085144635
A3: GÜN | B3: TARİH | C3: HİSSE | D3: GÜNCEL LOT | E3: ORT. MALİYET | F3: MALİYET TOPLAM | G3: BUGÜN ANLIK % | H3: BUGÜN ANLIK ₺ | I3: ANLIK TUTAR | J3: K/Z TL | K3: K/Z % | L3: Portföy Oranı | M3: AÇIKLAMA | N3: TÜMETTÜ TARİH
C4: KAYSE | D4: 39 | E4: 18.106 | F4: =IFERROR(D4*E4,) -> 706.134 | G4: =IFERROR(VLOOKUP(C4,Anlık!A:F,6,FALSE),) -> 0.0192 | H4: =IFERROR(VLOOKUP(C4,Anlık!A:B,2,FALSE),) -> 44.64 | I4: =H4*D4 -> 1740.96 | J4: =IFERROR(I4-F4,) -> 1034.826 | K4: =IFERROR(I4/F4-1,) -> 1.465481056 | L4: =(F4/SUM($F$4:$F$54)) -> 0.1027464472
C5: KLSER | D5: 10 | E5: 25 | F5: =IFERROR(D5*E5,) -> 250 | G5: =IFERROR(VLOOKUP(C5,Anlık!A:F,6,FALSE),) -> 0.0995 | H5: =IFERROR(VLOOKUP(C5,Anlık!A:B,2,FALSE),) -> 97.8 | I5: =H5*D5 -> 978 | J5: =IFERROR(I5-F5,) -> 728 | K5: =IFERROR(I5/F5-1,) -> 2.912 | L5: =(F5/SUM($F$4:$F$54)) -> 0.03637639853
C6: FZLGY | D6: 51 | E6: 8.9 | F6: 453.9 | G6: =IFERROR(VLOOKUP(C6,Anlık!A:F,6,FALSE),) -> 0.0083 | H6: =IFERROR(VLOOKUP(C6,Anlık!A:B,2,FALSE),) -> 18.15 | I6: =H6*D6 -> 925.65 | J6: 471.75 | K6: 1.039325843 | L6: 0.06604498917
C7: ATAKP | D7: 14 | E7: 39.5 | F7: 553 | G7: =IFERROR(VLOOKUP(C7,Anlık!A:F,6,FALSE),) -> -0.0199 | H7: =IFERROR(VLOOKUP(C7,Anlık!A:B,2,FALSE),) -> 69 | I7: =H7*D7 -> 966 | J7: 413 | K7: 0.746835443 | L7: 0.08046459354
C8: BIGCH | D8: 17 | E8: 22.5 | F8: 382.5 | G8: =IFERROR(VLOOKUP(C8,Anlık!A:F,6,FALSE),) -> -0.0515 | H8: =IFERROR(VLOOKUP(C8,Anlık!A:B,2,FALSE),) -> 37.6 | I8: =H8*D8 -> 639.2 | J8: 256.7 | K8: 0.6711111111 | L8: 0.05565588975
C9: SOKE | D9: 1 | E9: 7.5 | F9: 7.5 | G9: =IFERROR(VLOOKUP(C9,Anlık!A:F,6,FALSE),) -> 0.0549 | H9: =IFERROR(VLOOKUP(C9,Anlık!A:B,2,FALSE),) -> 25 | I9: 25 | J9: 17.5 | K9: 2.333333333 | L9: 0.001091291956
C10: ASGYO | D10: 52 | E10: 12.6 | F10: 655.2 | G10: =IFERROR(VLOOKUP(C10,Anlık!A:F,6,FALSE),) -> -0.0121 | H10: =IFERROR(VLOOKUP(C10,Anlık!A:B,2,FALSE),) -> 21.24 | I10: 1104.48 | J10: 449.28 | K10: 0.6857142857 | L10: 0.09533526526
C11: IZENR | D11: 51 | E11: 29.294 | F11: 1493.994 | G11: =IFERROR(VLOOKUP(C11,Anlık!A:F,6,FALSE),) -> 0.1 | H11: =IFERROR(VLOOKUP(C11,Anlık!A:B,2,FALSE),) -> 52.8 | I11: 2692.8 | J11: 1198.806 | K11: 0.8024168772 | L11: 0.2173844846
C12: OFSYM | D12: 16 | E12: 27.2 | F12: 435.2 | G12: =IFERROR(VLOOKUP(C12,Anlık!A:F,6,FALSE),) -> 0.0983 | H12: =IFERROR(VLOOKUP(C12,Anlık!A:B,2,FALSE),) -> 77.1 | I12: 1233.6 | J12: 798.4 | K12: 1.834558824 | L12: 0.06332403456
C13: TATEN | D13: 23 | E13: 22.5 | F13: =D13*E13 -> 517.5 | G13: =IFERROR(VLOOKUP(C13,Anlık!A:F,6,FALSE),) -> 0.1 | H13: =IFERROR(VLOOKUP(C13,Anlık!A:B,2,FALSE),) -> 58.3 | I13: 1340.9 | J13: 823.4 | K13: 1.591111111 | L13: 0.07529914495
C14: ENERY | D14: 11 | E14: 88.76 | F14: 976.36 | G14: =IFERROR(VLOOKUP(C14,Anlık!A:F,6,FALSE),) -> 0.0998 | H14: =IFERROR(VLOOKUP(C14,Anlık!A:B,2,FALSE),) -> 169.7 | I14: 1866.7 | J14: 890.34 | K14: 0.911897251 | L14: 0.1420658419
C15: BYDNR | D15: 5 | E15: 21 | F15: =IFERROR(D15*E15,) -> 105 | G15: =IFERROR(VLOOKUP(C15,Anlık!A:F,6,FALSE),) -> 0.0995 | H15: =IFERROR(VLOOKUP(C15,Anlık!A:B,2,FALSE),) -> 51.15 | I15: =H15*D15 -> 255.75 | J15: =IFERROR(I15-F15,) -> 150.75 | K15: =IFERROR(I15/F15-1,) -> 1.435714286 | L15: =(F15/SUM($F$4:$F$54)) -> 0.01527808738
C16: KZGYO | D16: 5 | E16: 20.76 | F16: =IFERROR(D16*E16,) -> 103.8 | G16: =IFERROR(VLOOKUP(C16,Anlık!A:F,6,FALSE),) -> 0.0242 | H16: =IFERROR(VLOOKUP(C16,Anlık!A:B,2,FALSE),) -> 36.46 | I16: =H16*D16 -> 182.3 | J16: =IFERROR(I16-F16,) -> 78.5 | K16: =IFERROR(I16/F16-1,) -> 0.7562620424 | L16: =(F16/SUM($F$4:$F$54)) -> 0.01510348067
C17: EBEBK | D17: 5 | E17: 46.5 | F17: =IFERROR(D17*E17,) -> 232.5 | G17: =IFERROR(VLOOKUP(C17,Anlık!A:F,6,FALSE),) -> -0.0784 | H17: =IFERROR(VLOOKUP(C17,Anlık!A:B,2,FALSE),) -> 75.8 | I17: =H17*D17 -> 379 | J17: =IFERROR(I17-F17,) -> 146.5 | K17: =IFERROR(I17/F17-1,) -> 0.6301075269 | L17: =(F17/SUM($F$4:$F$54)) -> 0.03383005063
F18: 0 | G18: =IFERROR(VLOOKUP(C18,Anlık!A:F,6,FALSE),) -> 0 | H18: =IFERROR(VLOOKUP(C18,Anlık!A:B,2,FALSE),) -> 0 | I18: 0 | J18: 0 | K18: 0 | L18: 0
F19: 0 | G19: =IFERROR(VLOOKUP(C19,Anlık!A:F,6,FALSE),) -> 0 | H19: =IFERROR(VLOOKUP(C19,Anlık!A:B,2,FALSE),) -> 0 | I19: 0 | J19: 0 | K19: 0 | L19: 0
F20: 0 | G20: =IFERROR(VLOOKUP(C20,Anlık!A:F,6,FALSE),) -> 0 | H20: =IFERROR(VLOOKUP(C20,Anlık!A:B,2,FALSE),) -> 0 | I20: 0 | J20: 0 | K20: 0 | L20: 0
F21: 0 | G21: =IFERROR(VLOOKUP(C21,Anlık!A:F,6,FALSE),) -> 0 | H21: =IFERROR(VLOOKUP(C21,Anlık!A:B,2,FALSE),) -> 0 | I21: 0 | J21: 0 | K21: 0 | L21: 0
F22: 0 | G22: =IFERROR(VLOOKUP(C22,Anlık!A:F,6,FALSE),) -> 0 | H22: =IFERROR(VLOOKUP(C22,Anlık!A:B,2,FALSE),) -> 0 | I22: 0 | J22: 0 | K22: 0 | L22: 0
F23: 0 | G23: =IFERROR(VLOOKUP(C23,Anlık!A:F,6,FALSE),) -> 0 | H23: =IFERROR(VLOOKUP(C23,Anlık!A:B,2,FALSE),) -> 0 | I23: 0 | J23: 0 | K23: 0 | L23: 0
F24: 0 | G24: =IFERROR(VLOOKUP(C24,Anlık!A:F,6,FALSE),) -> 0 | H24: =IFERROR(VLOOKUP(C24,Anlık!A:B,2,FALSE),) -> 0 | I24: 0 | J24: 0 | K24: 0 | L24: 0
F25: 0 | G25: =IFERROR(VLOOKUP(C25,Anlık!A:F,6,FALSE),) -> 0 | H25: =IFERROR(VLOOKUP(C25,Anlık!A:B,2,FALSE),) -> 0 | I25: 0 | J25: 0 | K25: 0 | L25: 0
F26: 0 | G26: =IFERROR(VLOOKUP(C26,Anlık!A:F,6,FALSE),) -> 0 | H26: =IFERROR(VLOOKUP(C26,Anlık!A:B,2,FALSE),) -> 0 | I26: 0 | J26: 0 | K26: 0 | L26: 0
F27: 0 | G27: =IFERROR(VLOOKUP(C27,Anlık!A:F,6,FALSE),) -> 0 | H27: =IFERROR(VLOOKUP(C27,Anlık!A:B,2,FALSE),) -> 0 | I27: 0 | J27: 0 | K27: 0 | L27: 0
F28: 0 | G28: =IFERROR(VLOOKUP(C28,Anlık!A:F,6,FALSE),) -> 0 | H28: =IFERROR(VLOOKUP(C28,Anlık!A:B,2,FALSE),) -> 0 | I28: 0 | J28: 0 | K28: 0 | L28: 0
F29: 0 | G29: =IFERROR(VLOOKUP(C29,Anlık!A:F,6,FALSE),) -> 0 | H29: =IFERROR(VLOOKUP(C29,Anlık!A:B,2,FALSE),) -> 0 | I29: 0 | J29: 0 | K29: 0 | L29: 0
F30: 0 | G30: =IFERROR(VLOOKUP(C30,Anlık!A:F,6,FALSE),) -> 0 | H30: =IFERROR(VLOOKUP(C30,Anlık!A:B,2,FALSE),) -> 0 | I30: 0 | J30: 0 | K30: 0 | L30: 0
F31: 0 | G31: =IFERROR(VLOOKUP(C31,Anlık!A:F,6,FALSE),) -> 0 | H31: =IFERROR(VLOOKUP(C31,Anlık!A:B,2,FALSE),) -> 0 | I31: 0 | J31: 0 | K31: 0 | L31: 0
F32: 0 | G32: =IFERROR(VLOOKUP(C32,Anlık!A:F,6,FALSE),) -> 0 | H32: =IFERROR(VLOOKUP(C32,Anlık!A:B,2,FALSE),) -> 0 | I32: 0 | J32: 0 | K32: 0 | L32: 0
F33: 0 | G33: =IFERROR(VLOOKUP(C33,Anlık!A:F,6,FALSE),) -> 0 | H33: =IFERROR(VLOOKUP(C33,Anlık!A:B,2,FALSE),) -> 0 | I33: 0 | J33: 0 | K33: 0 | L33: 0
F34: 0 | G34: =IFERROR(VLOOKUP(C34,Anlık!A:F,6,FALSE),) -> 0 | H34: =IFERROR(VLOOKUP(C34,Anlık!A:B,2,FALSE),) -> 0 | I34: 0 | J34: 0 | K34: 0 | L34: 0
F35: 0 | G35: =IFERROR(VLOOKUP(C35,Anlık!A:F,6,FALSE),) -> 0 | H35: =IFERROR(VLOOKUP(C35,Anlık!A:B,2,FALSE),) -> 0 | I35: 0 | J35: 0 | K35: 0 | L35: 0
F36: 0 | G36: =IFERROR(VLOOKUP(C36,Anlık!A:F,6,FALSE),) -> 0 | H36: =IFERROR(VLOOKUP(C36,Anlık!A:B,2,FALSE),) -> 0 | I36: 0 | J36: 0 | K36: 0 | L36: 0
F37: 0 | G37: =IFERROR(VLOOKUP(C37,Anlık!A:F,6,FALSE),) -> 0 | H37: =IFERROR(VLOOKUP(C37,Anlık!A:B,2,FALSE),) -> 0 | I37: 0 | J37: 0 | K37: 0 | L37: 0
F38: 0 | G38: =IFERROR(VLOOKUP(C38,Anlık!A:F,6,FALSE),) -> 0 | H38: =IFERROR(VLOOKUP(C38,Anlık!A:B,2,FALSE),) -> 0 | I38: 0 | J38: 0 | K38: 0 | L38: 0
F39: 0 | G39: =IFERROR(VLOOKUP(C39,Anlık!A:F,6,FALSE),) -> 0 | H39: =IFERROR(VLOOKUP(C39,Anlık!A:B,2,FALSE),) -> 0 | I39: 0 | J39: 0 | K39: 0 | L39: 0
F40: 0 | G40: =IFERROR(VLOOKUP(C40,Anlık!A:F,6,FALSE),) -> 0 | H40: =IFERROR(VLOOKUP(C40,Anlık!A:B,2,FALSE),) -> 0 | I40: 0 | J40: 0 | K40: 0 | L40: 0
F41: 0 | G41: =IFERROR(VLOOKUP(C41,Anlık!A:F,6,FALSE),) -> 0 | H41: =IFERROR(VLOOKUP(C41,Anlık!A:B,2,FALSE),) -> 0 | I41: 0 | J41: 0 | K41: 0 | L41: 0
F42: 0 | G42: =IFERROR(VLOOKUP(C42,Anlık!A:F,6,FALSE),) -> 0 | H42: =IFERROR(VLOOKUP(C42,Anlık!A:B,2,FALSE),) -> 0 | I42: 0 | J42: 0 | K42: 0 | L42: 0
F43: 0 | G43: =IFERROR(VLOOKUP(C43,Anlık!A:F,6,FALSE),) -> 0 | H43: =IFERROR(VLOOKUP(C43,Anlık!A:B,2,FALSE),) -> 0 | I43: 0 | J43: 0 | K43: 0 | L43: 0
F44: 0 | G44: =IFERROR(VLOOKUP(C44,Anlık!A:F,6,FALSE),) -> 0 | H44: =IFERROR(VLOOKUP(C44,Anlık!A:B,2,FALSE),) -> 0 | I44: 0 | J44: 0 | K44: 0 | L44: 0
F45: 0 | G45: =IFERROR(VLOOKUP(C45,Anlık!A:F,6,FALSE),) -> 0 | H45: =IFERROR(VLOOKUP(C45,Anlık!A:B,2,FALSE),) -> 0 | I45: 0 | J45: 0 | K45: 0 | L45: 0
F46: 0 | G46: =IFERROR(VLOOKUP(C46,Anlık!A:F,6,FALSE),) -> 0 | H46: =IFERROR(VLOOKUP(C46,Anlık!A:B,2,FALSE),) -> 0 | I46: 0 | J46: 0 | K46: 0 | L46: 0
F47: 0 | G47: =IFERROR(VLOOKUP(C47,Anlık!A:F,6,FALSE),) -> 0 | H47: =IFERROR(VLOOKUP(C47,Anlık!A:B,2,FALSE),) -> 0 | I47: 0 | J47: 0 | K47: 0 | L47: 0
F48: 0 | G48: =IFERROR(VLOOKUP(C48,Anlık!A:F,6,FALSE),) -> 0 | H48: =IFERROR(VLOOKUP(C48,Anlık!A:B,2,FALSE),) -> 0 | I48: 0 | J48: 0 | K48: 0 | L48: 0
F49: 0 | G49: =IFERROR(VLOOKUP(C49,Anlık!A:F,6,FALSE),) -> 0 | H49: =IFERROR(VLOOKUP(C49,Anlık!A:B,2,FALSE),) -> 0 | I49: 0 | J49: 0 | K49: 0 | L49: 0
F50: 0 | G50: =IFERROR(VLOOKUP(C50,Anlık!A:F,6,FALSE),) -> 0 | H50: =IFERROR(VLOOKUP(C50,Anlık!A:B,2,FALSE),) -> 0 | I50: 0 | J50: 0 | K50: 0 | L50: 0
F51: 0 | G51: =IFERROR(VLOOKUP(C51,Anlık!A:F,6,FALSE),) -> 0 | H51: =IFERROR(VLOOKUP(C51,Anlık!A:B,2,FALSE),) -> 0 | I51: 0 | J51: 0 | K51: 0 | L51: 0
F52: 0 | G52: =IFERROR(VLOOKUP(C52,Anlık!A:F,6,FALSE),) -> 0 | H52: =IFERROR(VLOOKUP(C52,Anlık!A:B,2,FALSE),) -> 0 | I52: 0 | J52: 0 | K52: 0 | L52: 0
F53: 0 | G53: =IFERROR(VLOOKUP(C53,Anlık!A:F,6,FALSE),) -> 0 | H53: =IFERROR(VLOOKUP(C53,Anlık!A:B,2,FALSE),) -> 0 | I53: 0 | J53: 0 | K53: 0 | L53: 0

Sheet Kayıt
E1: ANLIK KUR > | F1: ='K-Z'!C1 -> 26.9829 | G1: ='K-Z'!C2 -> 1669.16 | H1: DOLAR | I1: ALTIN | J1: Anlık Fiyat | K1: Kar / Zarar TL | L1: Kar / Zarar %
A2: Tarih | B2: Hisse | C2: Alış Lot | D2: Birim Fiyat | E2: Toplam Tutar | F2: Dolar Kuru | G2: Altın Kuru | H2: Dolar Alsaydık | I2: Altın Alsaydık
A3: 2023-07-28 | B3: DOAS | C3: 4 | D3: 235.3 | E3: =IF(C3,D3*C3,"") -> 941.2 | F3: 26.8 | G3: 1690 | H3: =IF(F3,E3/F3,"") -> 35.11940299 | I3: =IF(G3,E3/G3,"") -> 0.5569230769 | J3: =VLOOKUP(B3,Anlık!A:B,2,FALSE) -> 269.6 | K3: =IF(J3,J3*C3-E3,"") -> 137.2 | L3: =J3/D3-1 -> 0.1457713557
A4: 2023-07-28 | B4: VESBE | C4: 65 | D4: 16.206 | E4: 1053.39 | F4: 26.8 | G4: 1690 | H4: 39.30559701 | I4: 0.6233076923 | J4: =VLOOKUP(B4,Anlık!A:B,2,FALSE) -> 16.3 | K4: 6.11 | L4: 0.005800320869
A5: 2023-07-28 | B5: BRISA | C5: 15 | D5: 65.617 | E5: 984.255 | F5: 26.8 | G5: 1690 | H5: 36.72593284 | I5: 0.5823994083 | J5: =VLOOKUP(B5,Anlık!A:B,2,FALSE) -> 90.65 | K5: 375.495 | L5: 0.381501745
A6: 2023-07-28 | B6: NTGAZ | C6: 64 | D6: 15.23 | E6: 974.72 | F6: 26.8 | G6: 1690 | H6: 36.37014925 | I6: 0.5767573964 | J6: =VLOOKUP(B6,Anlık!A:B,2,FALSE) -> 17.91 | K6: 171.52 | L6: 0.1759684833
A7: 2023-07-28 | B7: TUPRS | C7: 11 | D7: 93.432 | E7: 1027.752 | F7: 26.8 | G7: 1690 | H7: 38.34895522 | I7: 0.6081372781 | J7: =VLOOKUP(B7,Anlık!A:B,2,FALSE) -> 141.5 | K7: 528.748 | L7: 0.514470417
A8: 2023-07-28 | B8: AKCNS | C8: 10 | D8: 100.77 | E8: 1007.7 | F8: 26.8 | G8: 1690 | H8: 37.60074627 | I8: 0.5962721893 | J8: =VLOOKUP(B8,Anlık!A:B,2,FALSE) -> 159.3 | K8: 585.3 | L8: 0.5808276273
A9: 2023-07-28 | B9: ENJSA | C9: 20 | D9: 41.127 | E9: 822.54 | F9: 26.8 | G9: 1690 | H9: 30.69179104 | I9: 0.4867100592 | J9: =VLOOKUP(B9,Anlık!A:B,2,FALSE) -> 50.2 | K9: 181.46 | L9: 0.2206093321
A10: 2023-07-28 | B10: ALKA | C10: 35 | D10: 28.623 | E10: 1001.805 | F10: 26.8 | G10: 1690 | H10: 37.38078358 | I10: 0.5927840237 | J10: =VLOOKUP(B10,Anlık!A:B,2,FALSE) -> 32.56 | K10: 137.795 | L10: 0.1375467282
A11: 2023-07-28 | B11: SISE | C11: 21 | D11: 46.122 | E11: 968.562 | F11: 26.8 | G11: 1690 | H11: 36.14037313 | I11: 0.5731136095 | J11: =VLOOKUP(B11,Anlık!A:B,2,FALSE) -> 54.55 | K11: 176.988 | L11: 0.1827327523
A12: 2023-07-28 | B12: ISMEN | C12: 49 | D12: 20.494 | E12: 1004.206 | F12: 26.8 | G12: 1690 | H12: 37.47037313 | I12: 0.5942047337 | J12: =VLOOKUP(B12,Anlık!A:B,2,FALSE) -> 36.56 | K12: 787.234 | L12: 0.783936762
A13: 2023-07-28 | B13: EREGL | C13: 27 | D13: 37.515 | E13: 1012.905 | F13: 26.8 | G13: 1690 | H13: 37.79496269 | I13: 0.599352071 | J13: =VLOOKUP(B13,Anlık!A:B,2,FALSE) -> 44 | K13: 175.095 | L13: 0.1728641877
A14: 2023-07-28 | B14: HEKTS | C14: 2 | D14: 51.25 | E14: 102.5 | F14: 26.8 | G14: 1690 | H14: 3.824626866 | I14: 0.06065088757 | J14: =VLOOKUP(B14,Anlık!A:B,2,FALSE) -> 24.64 | K14: -53.22 | L14: -0.5192195122
A15: 2023-07-28 | B15: HUNER | C15: 55 | D15: 10.596 | E15: 582.78 | F15: 26.8 | G15: 1690 | H15: 21.74552239 | I15: 0.3448402367 | J15: =VLOOKUP(B15,Anlık!A:B,2,FALSE) -> 8.42 | K15: -119.68 | L15: -0.2053605134
A16: 2023-07-28 | B16: ZOREN | C16: 100 | D16: 4.064 | E16: 406.4 | F16: 26.8 | G16: 1690 | H16: 15.1641791 | I16: 0.2404733728 | J16: =VLOOKUP(B16,Anlık!A:B,2,FALSE) -> 4.79 | K16: 72.6 | L16: 0.1786417323
A17: 2023-07-29 | B17: ENERY | C17: 11 | D17: 88.86 | E17: =IF(C17,D17*C17,"") -> 977.46 | F17: 26.8 | G17: 1690 | H17: =IF(F17,E17/F17,"") -> 36.47238806 | I17: =IF(G17,E17/G17,"") -> 0.5783786982 | J17: =VLOOKUP(B17,Anlık!A:B,2,FALSE) -> 169.7 | K17: =IF(J17,J17*C17-E17,"") -> 889.24 | L17: =J17/D17-1 -> 0.9097456673
A18: 2023-09-11 | B18: BIOEN | C18: 50 | D18: 21.1 | E18: =IF(C18,D18*C18,"") -> 1055 | F18: 26.8 | G18: 1690 | H18: =IF(F18,E18/F18,"") -> 39.36567164 | I18: =IF(G18,E18/G18,"") -> 0.624260355 | J18: =VLOOKUP(B18,Anlık!A:B,2,FALSE) -> 20.08 | K18: =IF(J18,J18*C18-E18,"") -> -51 | L18: =J18/D18-1 -> -0.04834123223
A19: 2023-09-11 | B19: ELITE | C19: 35 | D19: 36.94 | E19: =IF(C19,D19*C19,"") -> 1292.9 | F19: 26.8 | G19: 1690 | H19: =IF(F19,E19/F19,"") -> 48.24253731 | I19: =IF(G19,E19/G19,"") -> 0.7650295858 | J19: =VLOOKUP(B19,Anlık!A:B,2,FALSE) -> 43.56 | K19: =IF(J19,J19*C19-E19,"") -> 231.7 | L19: =J19/D19-1 -> 0.179209529
A20: 2023-09-11 | B20: AKSEN | C20: 35 | D20: 39.62 | E20: =IF(C20,D20*C20,"") -> 1386.7 | F20: 26.8 | G20: 1690 | H20: =IF(F20,E20/F20,"") -> 51.74253731 | I20: =IF(G20,E20/G20,"") -> 0.8205325444 | J20: =VLOOKUP(B20,Anlık!A:B,2,FALSE) -> 37.6 | K20: =IF(J20,J20*C20-E20,"") -> -70.7 | L20: =J20/D20-1 -> -0.05098435134
A21: 2023-09-11 | B21: ISMEN | C21: 35 | D21: 38.42 | E21: =IF(C21,D21*C21,"") -> 1344.7 | F21: 26.8 | G21: 1690 | H21: =IF(F21,E21/F21,"") -> 50.17537313 | I21: =IF(G21,E21/G21,"") -> 0.7956804734 | J21: =VLOOKUP(B21,Anlık!A:B,2,FALSE) -> 36.56 | K21: =IF(J21,J21*C21-E21,"") -> -65.1 | L21: =J21/D21-1 -> -0.04841228527
E22: =IF(C22,D22*C22,"") ->  | H22: =IF(F22,E22/F22,"") ->  | I22: =IF(G22,E22/G22,"") ->  | J22: =VLOOKUP(B22,Anlık!A:B,2,FALSE) ->  | K22: =IF(J22,J22*C22-E22,"") ->  | L22: =J22/D22-1 -> 
J23: =VLOOKUP(B23,Anlık!A:B,2,FALSE) -> 
J24: =VLOOKUP(B24,Anlık!A:B,2,FALSE) -> 
J25: =VLOOKUP(B25,Anlık!A:B,2,FALSE) -> 
J26: =VLOOKUP(B26,Anlık!A:B,2,FALSE) -> 
J27: =VLOOKUP(B27,Anlık!A:B,2,FALSE) -> 
J28: =VLOOKUP(B28,Anlık!A:B,2,FALSE) -> 
J29: =VLOOKUP(B29,Anlık!A:B,2,FALSE) -> 
J30: =VLOOKUP(B30,Anlık!A:B,2,FALSE) -> 
J31: =VLOOKUP(B31,Anlık!A:B,2,FALSE) -> 
J32: =VLOOKUP(B32,Anlık!A:B,2,FALSE) -> 
J33: =VLOOKUP(B33,Anlık!A:B,2,FALSE) -> 
J34: =VLOOKUP(B34,Anlık!A:B,2,FALSE) -> 
J35: =VLOOKUP(B35,Anlık!A:B,2,FALSE) -> 
J36: =VLOOKUP(B36,Anlık!A:B,2,FALSE) -> 
J37: =VLOOKUP(B37,Anlık!A:B,2,FALSE) -> 
J38: =VLOOKUP(B38,Anlık!A:B,2,FALSE) -> 
J39: =VLOOKUP(B39,Anlık!A:B,2,FALSE) -> 
J40: =VLOOKUP(B40,Anlık!A:B,2,FALSE) -> 
J41: =VLOOKUP(B41,Anlık!A:B,2,FALSE) -> 
J42: =VLOOKUP(B42,Anlık!A:B,2,FALSE) -> 
J43: =VLOOKUP(B43,Anlık!A:B,2,FALSE) -> 
J44: =VLOOKUP(B44,Anlık!A:B,2,FALSE) -> 
J45: =VLOOKUP(B45,Anlık!A:B,2,FALSE) -> 
J46: =VLOOKUP(B46,Anlık!A:B,2,FALSE) -> 
J47: =VLOOKUP(B47,Anlık!A:B,2,FALSE) -> 
J48: =VLOOKUP(B48,Anlık!A:B,2,FALSE) -> 
J49: =VLOOKUP(B49,Anlık!A:B,2,FALSE) -> 
J50: =VLOOKUP(B50,Anlık!A:B,2,FALSE) -> 
J51: =VLOOKUP(B51,Anlık!A:B,2,FALSE) -> 
J52: =VLOOKUP(B52,Anlık!A:B,2,FALSE) -> 
J53: =VLOOKUP(B53,Anlık!A:B,2,FALSE) -> 
J54: =VLOOKUP(B54,Anlık!A:B,2,FALSE) -> 
J55: =VLOOKUP(B55,Anlık!A:B,2,FALSE) -> 
J56: =VLOOKUP(B56,Anlık!A:B,2,FALSE) -> 
J57: =VLOOKUP(B57,Anlık!A:B,2,FALSE) ->  | L57: =J57/D57-1 -> 
J58: =VLOOKUP(B58,Anlık!A:B,2,FALSE) -> 
J59: =VLOOKUP(B59,Anlık!A:B,2,FALSE) -> 
J60: =VLOOKUP(B60,Anlık!A:B,2,FALSE) -> 
J61: =VLOOKUP(B61,Anlık!A:B,2,FALSE) -> 
J62: =VLOOKUP(B62,Anlık!A:B,2,FALSE) -> 
J63: =VLOOKUP(B63,Anlık!A:B,2,FALSE) -> 
J64: =VLOOKUP(B64,Anlık!A:B,2,FALSE) -> 
J65: =VLOOKUP(B65,Anlık!A:B,2,FALSE) -> 
J66: =VLOOKUP(B66,Anlık!A:B,2,FALSE) -> 
J67: =VLOOKUP(B67,Anlık!A:B,2,FALSE) -> 
J68: =VLOOKUP(B68,Anlık!A:B,2,FALSE) -> 
J69: =VLOOKUP(B69,Anlık!A:B,2,FALSE) -> 
J70: =VLOOKUP(B70,Anlık!A:B,2,FALSE) -> 
J71: =VLOOKUP(B71,Anlık!A:B,2,FALSE) -> 
J72: =VLOOKUP(B72,Anlık!A:B,2,FALSE) -> 
J73: =VLOOKUP(B73,Anlık!A:B,2,FALSE) -> 
J74: =VLOOKUP(B74,Anlık!A:B,2,FALSE) -> 
E75: =IF(C75,D75*C75,"") ->  | H75: =IF(F75,E75/F75,"") ->  | I75: =IF(G75,E75/G75,"") ->  | J75: =VLOOKUP(B75,Anlık!A:B,2,FALSE) ->  | K75: =IF(J75,J75*C75-E75,"") -> 
J76: =VLOOKUP(B76,Anlık!A:B,2,FALSE) -> 
J77: =VLOOKUP(B77,Anlık!A:B,2,FALSE) -> 
J78: =VLOOKUP(B78,Anlık!A:B,2,FALSE) -> 
J79: =VLOOKUP(B79,Anlık!A:B,2,FALSE) -> 
J80: =VLOOKUP(B80,Anlık!A:B,2,FALSE) -> 
J81: =VLOOKUP(B81,Anlık!A:B,2,FALSE) -> 
J82: =VLOOKUP(B82,Anlık!A:B,2,FALSE) -> 
J83: =VLOOKUP(B83,Anlık!A:B,2,FALSE) -> 
J84: =VLOOKUP(B84,Anlık!A:B,2,FALSE) -> 
J85: =VLOOKUP(B85,Anlık!A:B,2,FALSE) -> 
J86: =VLOOKUP(B86,Anlık!A:B,2,FALSE) -> 
J87: =VLOOKUP(B87,Anlık!A:B,2,FALSE) -> 
J88: =VLOOKUP(B88,Anlık!A:B,2,FALSE) -> 
J89: =VLOOKUP(B89,Anlık!A:B,2,FALSE) -> 
J90: =VLOOKUP(B90,Anlık!A:B,2,FALSE) -> 
J91: =VLOOKUP(B91,Anlık!A:B,2,FALSE) -> 
J92: =VLOOKUP(B92,Anlık!A:B,2,FALSE) -> 
J93: =VLOOKUP(B93,Anlık!A:B,2,FALSE) -> 
J94: =VLOOKUP(B94,Anlık!A:B,2,FALSE) -> 
J95: =VLOOKUP(B95,Anlık!A:B,2,FALSE) -> 
J96: =VLOOKUP(B96,Anlık!A:B,2,FALSE) -> 
J97: =VLOOKUP(B97,Anlık!A:B,2,FALSE) -> 
J98: =VLOOKUP(B98,Anlık!A:B,2,FALSE) -> 
J99: =VLOOKUP(B99,Anlık!A:B,2,FALSE) -> 
J100: =VLOOKUP(B100,Anlık!A:B,2,FALSE) -> 
J101: =VLOOKUP(B101,Anlık!A:B,2,FALSE) -> 
J102: =VLOOKUP(B102,Anlık!A:B,2,FALSE) -> 
J103: =VLOOKUP(B103,Anlık!A:B,2,FALSE) -> 
J104: =VLOOKUP(B104,Anlık!A:B,2,FALSE) -> 
J105: =VLOOKUP(B105,Anlık!A:B,2,FALSE) -> 
J106: =VLOOKUP(B106,Anlık!A:B,2,FALSE) -> 
J107: =VLOOKUP(B107,Anlık!A:B,2,FALSE) -> 
J108: =VLOOKUP(B108,Anlık!A:B,2,FALSE) -> 
J109: =VLOOKUP(B109,Anlık!A:B,2,FALSE) -> 
J110: =VLOOKUP(B110,Anlık!A:B,2,FALSE) -> 
J111: =VLOOKUP(B111,Anlık!A:B,2,FALSE) -> 

Sheet AltınDolar
E1: ANLIK KUR > | F1: ='K-Z'!C1 -> 26.9829 | G1: ='K-Z'!C2 -> 1669.16 | H1: DOLAR | I1: ALTIN | J1: DOLAR K/Z | K1: ALTIN K/Z
A2: Tarih | B2: EMTİA | C2: Alış Adet | D2: Birim Fiyat | E2: Toplam Tutar | F2: Dolar Kuru | G2: Altın Kuru | H2: Dolar Alsaydık | I2: Altın Alsaydık
A3: 2019-01-01 | B3: VAKIFBANK ALTIN | C3: 0 | D3: 0 | E3: =IF(C3,D3*C3,"") ->  | F3: 5.92 | G3: 278.22 | H3: =IF(F3,E3/F3,"") ->  | I3: =IF(G3,E3/G3,"") ->  | J3: =H3*$F$1-E3 ->  | K3: =I3*$G$1-E3 -> 
A4: 2022-03-16 | B4: HALKBANK DOLAR | C4: 0 | D4: 0 | F4: 13.77 | G4: 817.21 | J4: =H4*$F$1-E4 ->  | K4: =I4*$G$1-E4 -> 
A5: 2022-03-16 | B5: HALKBANK ALTIN | C5: 0 | D5: 0 | F5: 13.77 | G5: 817.21
E61: =IF(C61,D61*C61,"") ->  | H61: =IF(F61,E61/F61,"") ->  | I61: =IF(G61,E61/G61,"") -> 
J62: =H62*$F$1-E62 ->  | K62: =I62*$G$1-E62 -> 
E125: =IF(C125,D125*C125,"") ->  | H125: =IF(F125,E125/F125,"") ->  | I125: =IF(G125,E125/G125,"") -> 
J126: =H126*$F$1-E126 ->  | K126: =I126*$G$1-E126 -> 

Sheet GRAFIK
A1: GÜN | B1: ALSAYDIM | E1: YÜZDELİK KAR- ZARAR | H1: GÜNLÜK EMTİA FİYATI | J1: BORSA NET
B2: HİSSE K-Z | C2: DOLAR K-Z | D2: ALTIN K-Z | E2: HİSSE % | F2: DOLAR % | G2: ALTIN % | H2: DOLAR TL | I2: ALTIN TL | J2: GÜNLÜK K-Z | K2: GÜNCEL TUTAR | L2: K/Z ORAN
A3: 2023-06-29 | B3: 1145.32 | C3: 1164.48 | D3: 964.99 | E3: 0.2077270065 | F3: 0.2112023726 | G3: 0.175019536 | H3: 26 | I3: 1500 | J3: =IF(B3,B3-B2,"") ->  | K3: 5513.6 | L3: 6658.92
A4: 2023-07-30 | B4: 1593.85 | C4: -1.99 | D4: 0 | E4: 0.1044959223 | F4: -0.0001302083333 | G4: 0 | H4: 26.88 | I4: 1694.58 | J4: =IF(B4,B4-B3,"") -> 448.53 | K4: 15252.78 | L4: 16846.63
A5: 2023-07-31 | B5: 2426.16 | C5: 78.88 | D5: 102.89 | E5: 0.1590636905 | F5: 0.005171641791 | G5: 0.00674556213 | H5: 26.94 | I5: 1701.4 | J5: =IF(B5,B5-B4,"") -> 832.31 | K5: 15252.78 | L5: 17678.94
A6: 2023-08-01 | B6: 2722.04 | C6: 1774.8 | D6: 1631.04 | E6: 0.1784621253 | F6: 0.1163588472 | G6: 0.1069337662 | H6: 26.96 | I6: 1685.83 | J6: 295.88 | K6: 15252.78 | L6: 17974.82
A7: 2023-08-02 | B7: 3179.92 | C7: 1772.46 | D7: 1549.61 | E7: 0.2084815768 | F7: 0.1162056462 | G7: 0.1015955224 | H7: 26.96 | I7: 1677.7 | J7: 457.88 | K7: 15252.78 | L7: 18432.7
A8: 2023-08-04 | B8: 4445.5 | C8: 118.98 | D8: -61.36 | E8: 0.2627990686 | F8: 0.00703358209 | G8: -0.003627218935 | H8: 26.99 | I8: 1683.87 | J8: 1265.58 | K8: 16915.98 | L8: 21361.48
A9: 2023-08-07 | B9: 5128.26 | C9: 121 | D9: -118.11 | E9: 0.3031609111 | F9: 0.007152985075 | G9: -0.006982248521 | H9: 26.99 | I9: 1678.2 | J9: 682.76 | K9: 16915.98 | L9: 22044.24
A10: 2023-08-08 | B10: 5531.41 | C10: 137.79 | D10: -157.65 | E10: 0.3269934098 | F10: 0.008145522388 | G10: -0.009319526627 | H10: 27.02 | I10: 1674.25 | J10: 403.15 | K10: 16915.98 | L10: 22447.39
A11: 2023-08-09 | B11: 6132.75 | C11: 104.15 | D11: -250.54 | E11: 0.3625420512 | F11: 0.006156716418 | G11: -0.01481065089 | H11: 26.97 | I11: 1664.97 | J11: 601.34 | K11: 16915.98 | L11: 23048.73
A12: 2023-08-11 | B12: 5693.21 | C12: 160.89 | D12: -260.15 | E12: 0.3365583318 | F12: 0.00951119403 | G12: -0.01537869822 | H12: 27.05 | I12: 1664.01 | J12: -439.54 | K12: 16915.98 | L12: 22609.19
A13: 2023-08-12 | B13: 6337.05 | C13: 104.4 | D13: -259.34 | E13: 0.3746193909 | F13: 0.006171641791 | G13: -0.01533136095 | H13: 26.97 | I13: 1664.09 | J13: 643.84 | K13: 16915.98 | L13: 23253.03
A14: 2023-08-15 | B14: 6846.42 | C14: 163.73 | D14: -307.59 | E14: 0.3816192822 | F14: 0.009679104478 | G14: -0.01818343195 | H14: 27.06 | I14: 1659.27 | J14: 509.37 | K14: 16915.98 | L14: 23371.44
A15: 2023-08-16 | B15: 7952.73 | C15: 696.87 | D15: 52.59 | E15: 0.440956748 | F15: 0.03863924484 | G15: 0.002915706536 | H15: 27.06 | I15: 1647.65 | J15: 1106.31 | K15: 18035.18 | L15: 25987.91
A16: 2023-08-17 | B16: 9134.23 | C16: 204.36 | D16: -483.03 | E16: 0.4923404315 | F16: 0.01101492537 | G16: -0.02603550296 | H16: 27.1 | I16: 1646 | J16: 1181.5 | K16: 18552.68 | L16: 27686.91
A17: 2023-08-21 | B17: 11566.89 | C17: -6495.98 | D17: -6901.9 | E17: 0.6234622098 | F17: -0.350137253 | G17: -0.3720165225 | H17: 27.17 | I17: 1655.88 | J17: 2432.66 | K17: 18552.68 | L17: 30119.57
A18: 2023-08-22 | B18: 13355 | C18: -6483.43 | D18: -6879.04 | E18: 0.719842371 | F18: -0.3494604572 | G18: -0.3707839777 | H18: 27.2 | I18: 1659.13 | J18: 1788.11 | K18: 18552.68 | L18: 31907.68
A19: 2023-08-23 | B19: 14747.07 | C19: -6471.31 | D19: -6775.63 | E19: 0.7551405457 | F19: -0.3313709201 | G19: -0.3469540392 | H19: 27.19 | I19: 1674.91 | J19: 1392.07 | K19: 19528.91 | L19: 34275.98
A20: 2023-08-24 | B20: 13024.76 | C20: -7161.92 | D20: -7468.08 | E20: 0.666947703 | F20: -0.3667342916 | G20: -0.3824114666 | H20: 25.76 | I20: 1583.97 | J20: -1722.31 | K20: 19528.91 | L20: 32553.67
A21: 2023-08-25 | B21: 12619.96 | C21: -6787.4 | D21: -7120.33 | E21: 0.6462194585 | F21: -0.3475564915 | G21: -0.364604773 | H21: 26.54 | I21: 1629.64 | J21: -404.8 | K21: 19528.91 | L21: 32148.87
A22: 2023-08-28 | B22: 14741.46 | C22: -6776.16 | D22: -7014.34 | E22: 0.7548532793 | F22: -0.3469811575 | G22: -0.3591773771 | H22: 26.56 | I22: 1643.56 | J22: 2121.5 | K22: 19528.91 | L22: 34270.37
A23: 2023-08-29 | B23: 15389.75 | C23: -6758.88 | D23: -6932.26 | E23: 0.7880497062 | F23: -0.3460960283 | G23: -0.3549742644 | H23: 26.6 | I23: 1654.34 | J23: 648.29 | K23: 19528.91 | L23: 34918.66
A24: 2023-08-31 | B24: 15955.27 | C24: -7542.56 | D24: -7675.02 | E24: 0.7844703817 | F24: -0.3708439588 | G24: -0.3773566252 | H24: 26.65 | I24: 1663.17 | J24: 560 | K24: 20338.9 | L24: 36294.17
A25: 2023-09-01 | B25: 16091.66 | C25: -7522.73 | D25: -7651.72 | E25: 0.7911762498 | F25: -0.3698689586 | G25: -0.3762110485 | H25: 26.69 | I25: 1666.23 | J25: 136.39 | K25: 20338.9 | L25: 36430.56
A26: 2023-09-05 | B26: 17737.32 | C26: -7479.71 | D26: -7717.28 | E26: 0.8435468226 | F26: -0.367753704 | G26: -0.3794343868 | H26: 26.78 | I26: 1657.62 | J26: =IF(B26,B26-B25,"") -> 1645.66 | K26: 20653.9 | L26: 38391.22
A27: 2023-09-07 | B27: 17631.59 | C27: -7755.85 | D27: -7989.19 | E27: 0.8540365434 | F27: -0.3756766319 | G27: -0.3869794041 | H27: 26.84 | I27: 1662.11 | J27: -860 | K27: 20645 | L27: 38276.59
A28: 2023-09-08 | B28: 18190.52 | C28: -7755.08 | D28: -8029.85 | E28: 0.8811099228 | F28: -0.3756394195 | G28: -0.3889489067 | H28: 26.85 | I28: 1656.77 | J28: 558.93 | K28: 20645 | L28: 38835.52
A29: 2023-09-11 | B29: 12302.96 | C29: -5843.5 | D29: -6188.34 | E29: 0.5160072917 | F29: -0.2450863073 | G29: -0.2595497182 | H29: 26.88 | I29: 1662.39 | K29: 23842.6 | L29: 36145.56
A30: 2023-09-12 | B30: 11661.76 | C30: -5829.57 | D30: -6277.44 | E30: 0.4891142548 | F30: -0.2445020848 | G30: -0.2632867341 | H30: 26.9 | I30: 1654 | J30: -641.2 | K30: 23842.6 | L30: 35504.36
A31: 2023-09-13 | B31: 10356.4 | C31: -5796.42 | D31: -6291.35 | E31: 0.4343651991 | F31: -0.2431117478 | G31: -0.2638702253 | H31: 26.95 | I31: 1652.69 | J31: -1305.36 | K31: 23842.6 | L31: 34199
A32: 2023-09-14 | B32: 9915.64 | C32: -5801.44 | D32: -6270.11 | E32: 0.4158789625 | F32: -0.2433224049 | G32: -0.2629793991 | H32: 26.94 | I32: 1654.69 | J32: -440.76 | K32: 23842.6 | L32: 33758.24
J67: =IF(B67,B67-B66,"") -> 

Sheet Temettü
A1: TEMETTÜ GELİRİ | C1: GÜNCEL LOT | D1: MALİYET | F1: MALİYET-TMT-SIFIR MLYT | H1: TEMETTÜ | I1: SIFIR MALİYETLER | K1: ANLIK TUTAR | L1: KAR / ZARAR | M1: NET K / Z | N1: Anlık % K / Z | O1: NET MALİYETE GÖRE
C2: =SUM(C4:C15) -> 489 | D2: =SUM(F4:F15) -> 13684.145 | F2: =SUM(G4:G15) ->  | H2: =H16 -> 371.303 | I2: =SUM(J4:J15) -> 33.65 | K2: =SUM(K4:K15) -> 23127.73 | L2: =SUM(L4:L15) ->  | M2: =SUM(M4:M15) ->  | N2: ='K-Z'!K2 -> 0.4473209993 | O2: =K2/F2-1 -> 
A3: SIRA | B3: HİSSE ADI | C3: Güncel Lot | D3: Ort. Lot Maliyet | E3: Net Lot Maliyet | F3: Toplam Maliyet | G3: Net Maliyet | H3: Temettü Gelir | I3: Sıfır Lot | J3: Sıfır Maliyet | K3: Anlık Tutar | L3: Genel Kar / Zarar | M3: Net Kar / Zarar | N3: Genel % Kar / Zarar | O3: Net % Kar / Zarar
A4: 1 | B4: ='K-Z'!C4 -> HALKA ARZ | C4: ='K-Z'!D4 -> 300 | D4: ='K-Z'!E4 -> 22.90862667 | E4: =G4/C4 -> 22.90862667 | F4: ='K-Z'!F4 -> 6872.588 | G4: =F4-H4-J4 -> 6872.588 | H4: =SUMIF($B$19:$B$1000,B4,$F$19:$F$999) -> 0 | I4: =SUMIF($J$19:$J$1000,B4,$L$19:$L$999) -> 0 | J4: =SUMIF($J$19:$J$1000,B4,$N$19:$N$999) -> 0 | K4: ='K-Z'!I4 -> 14330.34 | L4: =K4-F4 -> 7457.752 | M4: =K4-G4 -> 7457.752 | N4: =K4/F4-1 -> 1.085144635 | O4: =K4/G4-1 -> 1.085144635
A5: 2 | B5: ='K-Z'!C5 -> DOAS | C5: ='K-Z'!D5 -> 4 | D5: ='K-Z'!E5 -> 235.3 | E5: =G5/C5 -> 235.3 | F5: ='K-Z'!F5 -> 941.2 | G5: =F5-H5-J5 -> 941.2 | H5: 0 | I5: 0 | J5: 0 | K5: ='K-Z'!I5 -> 1078.4 | L5: =K5-F5 -> 137.2 | M5: =K5-G5 -> 137.2 | N5: =K5/F5-1 -> 0.1457713557 | O5: =K5/G5-1 -> 0.1457713557
A6: 3 | B6: ='K-Z'!C6 -> VESBE | C6: ='K-Z'!D6 -> 65 | D6: ='K-Z'!E6 -> 16.206 | E6: 15.75138462 | F6: ='K-Z'!F6 -> 1053.39 | G6: 1023.84 | H6: 0 | I6: 3 | J6: 29.55 | K6: ='K-Z'!I6 -> 1059.5 | L6: 6.11 | M6: 35.66 | N6: 0.005800320869 | O6: 0.03482966088
A7: 4 | B7: ='K-Z'!C7 -> BRISA | C7: ='K-Z'!D7 -> 15 | D7: ='K-Z'!E7 -> 65.617 | E7: 65.617 | F7: ='K-Z'!F7 -> 984.255 | G7: 984.255 | H7: 0 | I7: 0 | J7: 0 | K7: ='K-Z'!I7 -> 1359.75 | L7: 375.495 | M7: 375.495 | N7: 0.381501745 | O7: 0.381501745
A8: 5 | B8: ='K-Z'!C8 -> NTGAZ | C8: ='K-Z'!D8 -> 64 | D8: ='K-Z'!E8 -> 15.23 | E8: 15.23 | F8: ='K-Z'!F8 -> 974.72 | G8: 974.72 | H8: 0 | I8: 0 | J8: 0 | K8: ='K-Z'!I8 -> 1146.24 | L8: 171.52 | M8: 171.52 | N8: 0.1759684833 | O8: 0.1759684833
A9: 6 | B9: ='K-Z'!C9 -> TUPRS | C9: ='K-Z'!D9 -> 11 | D9: ='K-Z'!E9 -> 93.432 | E9: 93.432 | F9: ='K-Z'!F9 -> 1027.752 | G9: 1027.752 | H9: 0 | I9: 0 | J9: 0 | K9: ='K-Z'!I9 -> 1556.5 | L9: 528.748 | M9: 528.748 | N9: 0.514470417 | O9: 0.514470417
A10: 7 | B10: ='K-Z'!C10 -> AKCNS | C10: ='K-Z'!D10 -> 10 | D10: ='K-Z'!E10 -> 100.77 | E10: 100.77 | F10: ='K-Z'!F10 -> 1007.7 | G10: 1007.7 | H10: 0 | I10: 0 | J10: 0 | K10: ='K-Z'!I10 -> 1593 | L10: 585.3 | M10: 585.3 | N10: 0.5808276273 | O10: 0.5808276273
A11: 8 | B11: ='K-Z'!C11 -> ENJSA | C11: ='K-Z'!D11 -> 20 | D11: ='K-Z'!E11 -> 41.127 | E11: 37.4066 | F11: ='K-Z'!F11 -> 822.54 | G11: 748.132 | H11: 70.308 | I11: 0.1461675579 | J11: 4.1 | K11: ='K-Z'!I11 -> 1004 | L11: 181.46 | M11: 255.868 | N11: 0.2206093321 | O11: 0.3420091642
A12: 9 | B12: ='K-Z'!C26 -> 0 | C12: ='K-Z'!D26 -> 0 | D12: ='K-Z'!E26 -> 0 | F12: ='K-Z'!F26 -> 0 | G12: 0 | H12: 0 | I12: 0 | J12: 0 | K12: ='K-Z'!I26 -> 0 | L12: 0 | M12: 0
A13: 10 | B13: ='K-Z'!C27 -> 0 | C13: ='K-Z'!D27 -> 0 | D13: ='K-Z'!E27 -> 0 | F13: ='K-Z'!F27 -> 0 | G13: 0 | H13: 0 | I13: 0 | J13: 0 | K13: ='K-Z'!I27 -> 0 | L13: 0 | M13: 0
A14: 11 | B14: ='K-Z'!C28 -> 0 | C14: ='K-Z'!D28 -> 0 | D14: ='K-Z'!E28 -> 0 | F14: ='K-Z'!F28 -> 0 | G14: 0 | H14: 0 | I14: 0 | J14: 0 | K14: ='K-Z'!I28 -> 0 | L14: 0 | M14: 0
A15: 12 | B15: ='K-Z'!C30 -> 0 | C15: ='K-Z'!D30 -> TP TUTAR | D15: ='K-Z'!E30 -> TP K / Z | F15: ='K-Z'!F30 -> TP K/ Z % | H15: 0 | I15: 0 | J15: 0 | K15: ='K-Z'!I30 -> 0
F16: TOPLAM : | H16: =SUBTOTAL(9,F19:F999) -> 371.303 | J16: SIFIR MALİYET
B18: HİSSE ADI | C18: Tarih | D18: LOT Sayısı | E18: TEMETTÜ BİRİM TL | F18: TEMETTÜ Geliri | G18: Bedelsiz LOT | H18: Bedelli LOT Sayısı | I18: Bedelli Ödenen TL | J18: Hisse Adı | K18: Tarih | L18: Adet | M18: Birim Tutar | N18: Birim Tutar | O18: Açıklama
B19: EREGL | C19: 2022-03-22 | D19: 20 | E19: 4.005 | F19: =D19*E19 -> 80.1 | J19: VESBE | L19: 3 | M19: 9.85 | N19: 29.55 | O19: SIFIR MALİYET
B20: TOASO | C20: 2022-03-22 | D20: 10 | E20: 5.76 | F20: 57.6 | J20: SISE | L20: 7 | M20: 37.674 | N20: 263.718 | O20: SIFIR MALİYET
B21: SISE | C21: 2023-06-02 | D21: 194 | E21: 0.61 | F21: =D21*E21 -> 118.34 | J21: ENJSA | L21: 0.1461675579 | M21: 28.05 | N21: 4.1 | O21: SIFIR MALİYET
B22: AKSA | C22: 2022-04-25 | D22: 27 | E22: 1.665 | F22: =D22*E22 -> 44.955 | J22: EREGL | L22: 2.368257905 | M22: 32.26 | N22: 76.4 | O22: SIFIR MALİYET
B23: ENJSA | C23: 2022-04-11 | D23: 63 | E23: 1.116 | F23: 70.308

Sheet Anlık
A1: Döviz
A2: Kapalıçarşı
A3: Altın
A4: Emtia
A5: Pariteler
A6: Kripto Paralar
A7: Borsa
A8: Hisseler
A9: Borsa Yatırım Fonları
A10: Endeksler
A11: Akaryakıt
A12: Haberler
A13: Gündem
A14: Borsa
A15: Döviz
A16: Altın
A17: Emtia
A18: Kripto Para
A19: Analizler
A20: Makaleler
A21: Kur Korumalı TL Vadeli Mevduat Hesaplama
A23: GRAM ALTIN 1.669,16
A24: 0.0085
A25: -14.07
A26: DOLAR 26,9829
A27: 0.0024
A28: -0.0646
A29: EURO 28,7750
A30: 0.002
A31: -0.0574
A32: STERLİN 33,4143
A33: -0.0005
A34: (-0,0167)
A35: BIST 100 7.961,98
A36: -0.0193
A37: (-156,69)
A38: BITCOIN $26.412
A39: -0.0078
A40: (-$207)
A41: GRAM GÜMÜŞ 20,02
A42: 0.0201
A43: -0.39
A44: BRENT $93,74
A45: 0.0004
A46: ($0,04)
A47: Artık bu alanı düzenleyebilirsiniz! Hemen Deneyin!
A58: Sıfırla Kaydet
A59: Doviz.com »
A60: Borsa »
A61: Tüm Hisse Senetleri
A62: Tüm Hisse Senetleri
B63: Son | C63: En Yüksek | D63: En Düşük | E63: Hacim(TL) | F63: Değişim
A64: THYAO | B64: 227.1 | C64: 236 | D64: 227.1 | E64: ₺8.573.719.849,00 | F64: -0.0478 | G64: 18:10:00
A65: TURK HAVA YOLLARI
A66: EREGL | B66: 44 | C66: 45.2 | D66: 44 | E66: ₺5.552.961.329,50 | F66: -0.0005 | G66: 18:10:00
A67: EREGLI DEMIR CELIK
A68: EBEBK | B68: 75.8 | C68: 82.75 | D68: 74.05 | E68: ₺5.088.709.552,65 | F68: -0.0784 | G68: 18:10:00
A69: EBEBEK MAGAZACILIK
A70: ISCTR | B70: 21.58 | C70: 22.44 | D70: 21.34 | E70: ₺5.060.616.013,48 | F70: -0.0019 | G70: 18:10:00
A71: IS BANKASI (C)
A72: KOZAL | B72: 29.78 | C72: 31.38 | D72: 29.78 | E72: ₺5.053.132.882,22 | F72: -0.0461 | G72: 18:10:00
A73: KOZA ALTIN
A74: YKBNK | B74: 16.07 | C74: 16.47 | D74: 16.04 | E74: ₺4.823.986.892,44 | F74: -0.0043 | G74: 18:10:00
A75: YAPI VE KREDI BANK.
A76: SISE | B76: 54.55 | C76: 56.95 | D76: 54.5 | E76: ₺4.639.285.419,40 | F76: -0.0362 | G76: 18:10:00
A77: SISE CAM
A78: ENKAI | B78: 36.7 | C78: 38.82 | D78: 36.4 | E78: ₺4.573.962.118,52 | F78: -0.0208 | G78: 18:10:00
A79: ENKA INSAAT
A80: TUPRS | B80: 141.5 | C80: 145.1 | D80: 140.7 | E80: ₺4.212.671.761,10 | F80: -0.0208 | G80: 18:10:00
A81: TUPRAS
A82: ASTOR | B82: 139 | C82: 141 | D82: 135.6 | E82: ₺3.558.468.565,00 | F82: -0.0029 | G82: 18:10:00
A83: ASTOR ENERJI
A84: AKBNK | B84: 28.44 | C84: 29.68 | D84: 28.44 | E84: ₺3.553.514.102,64 | F84: -0.0125 | G84: 18:10:00
A85: AKBANK
A86: ASELS | B86: 40.82 | C86: 42.38 | D86: 40.6 | E86: ₺3.377.158.262,06 | F86: -0.0211 | G86: 18:10:00
A87: ASELSAN
A88: KRDMD | B88: 25.92 | C88: 26.98 | D88: 25.76 | E88: ₺3.261.267.674,78 | F88: -0.0234 | G88: 18:10:00
A89: KARDEMIR (D)
A90: SASA | B90: 49 | C90: 50.3 | D90: 48.66 | E90: ₺3.153.760.531,84 | F90: -0.0101 | G90: 18:10:00
A91: SASA POLYESTER
A92: HALKB | B92: 16.92 | C92: 17.69 | D92: 16.31 | E92: ₺3.019.089.105,60 | F92: 0.0509 | G92: 18:10:00
A93: T. HALK BANKASI
A94: VAKBN | B94: 14.35 | C94: 15.13 | D94: 13.84 | E94: ₺2.954.619.377,83 | F94: 0.0279 | G94: 18:10:00
A95: VAKIFLAR BANKASI
A96: BIMAS | B96: 270 | C96: 286.2 | D96: 270 | E96: ₺2.614.007.813,50 | F96: -0.0142 | G96: 18:10:00
A97: BIM MAGAZALAR
A98: KOZAA | B98: 67.95 | C98: 71.6 | D98: 67.8 | E98: ₺2.547.341.602,45 | F98: -0.0244 | G98: 18:10:00
A99: KOZA MADENCILIK
A100: ODAS | B100: 12.28 | C100: 12.28 | D100: 10.88 | E100: ₺2.317.896.699,77 | F100: 0.0994 | G100: 18:10:00
A101: ODAS ELEKTRIK
A102: PETKM | B102: 19.41 | C102: 19.98 | D102: 19.3 | E102: ₺2.276.259.730,07 | F102: -0.0112 | G102: 18:10:00
A103: PETKIM
A104: PGSUS | B104: 803.1 | C104: 843.4 | D104: 803.1 | E104: ₺2.274.231.513,00 | F104: -0.0574 | G104: 18:10:00
A105: PEGASUS
A106: EUPWR | B106: 221.9 | C106: 227.1 | D106: 212.1 | E106: ₺2.251.998.034,00 | F106: 0.0086 | G106: 18:10:00
A107: EUROPOWER ENERJI
A108: GARAN | B108: 50 | C108: 51.55 | D108: 49.7 | E108: ₺2.168.323.880,46 | F108: -0.0119 | G108: 18:10:00
A109: GARANTI BANKASI
A110: KLSER | B110: 97.8 | C110: 97.8 | D110: 87.25 | E110: ₺2.026.599.721,40 | F110: 0.0995 | G110: 18:10:00
A111: KALESERAMIK
A112: ARCLK | B112: 162.6 | C112: 165 | D112: 159 | E112: ₺1.942.612.844,30 | F112: 0.0049 | G112: 18:10:00
A113: ARCELIK
A114: BRSAN | B114: 748.7 | C114: 748.7 | D114: 696.1 | E114: ₺1.897.110.042,80 | F114: 0.0999 | G114: 18:10:00
A115: BORUSAN MANNESMANN
A116: SAHOL | B116: 58.6 | C116: 60.6 | D116: 58.5 | E116: ₺1.890.943.424,15 | F116: -0.029 | G116: 18:10:00
A117: SABANCI HOLDING
A118: TCELL | B118: 56.55 | C118: 60.15 | D118: 56.55 | E118: ₺1.814.257.378,05 | F118: -0.0606 | G118: 18:10:00
A119: TURKCELL
A120: KCHOL | B120: 136.4 | C120: 141.6 | D120: 136.4 | E120: ₺1.752.506.539,60 | F120: -0.0326 | G120: 18:10:00
A121: KOC HOLDING
A122: GUBRF | B122: 333 | C122: 346.5 | D122: 332.5 | E122: ₺1.670.644.890,00 | F122: -0.045 | G122: 18:10:00
A123: GUBRE FABRIK.
A124: ENERY | B124: 169.7 | C124: 169.7 | D124: 148 | E124: ₺1.666.751.462,40 | F124: 0.0998 | G124: 18:10:00
A125: ENERYA ENERJI
A126: KZGYO | B126: 36.46 | C126: 38.78 | D126: 32.68 | E126: ₺1.656.198.493,30 | F126: 0.0242 | G126: 18:10:00
A127: KUZUGRUP GMYO
A128: TOASO | B128: 290.6 | C128: 302.4 | D128: 290.5 | E128: ₺1.634.404.288,70 | F128: -0.0409 | G128: 18:10:00
A129: TOFAS OTO. FAB.
A130: ULKER | B130: 77.25 | C130: 83 | D130: 76.85 | E130: ₺1.581.790.499,80 | F130: -0.0277 | G130: 18:10:00
A131: ULKER BISKUVI
A132: TTKOM | B132: 24.5 | C132: 25.54 | D132: 24.46 | E132: ₺1.499.491.814,64 | F132: -0.0354 | G132: 18:10:00
A133: TURK TELEKOM
A134: EKGYO | B134: 8.35 | C134: 8.62 | D134: 8.35 | E134: ₺1.406.044.143,59 | F134: -0.0302 | G134: 18:10:00
A135: EMLAK KONUT GMYO
A136: ZOREN | B136: 4.79 | C136: 4.93 | D136: 4.71 | E136: ₺1.400.916.732,22 | F136: -0.0042 | G136: 18:10:00
A137: ZORLU ENERJI
A138: SKBNK | B138: 5.63 | C138: 5.81 | D138: 5.48 | E138: ₺1.319.718.036,70 | F138: 0.0349 | G138: 18:10:00
A139: SEKERBANK
A140: KONTR | B140: 279 | C140: 282.2 | D140: 273.2 | E140: ₺1.297.744.106,30 | F140: -0.0103 | G140: 18:10:00
A141: KONTROLMATIK TEKNOLOJI
A142: OYAKC | B142: 70.25 | C142: 73.75 | D142: 70.25 | E142: ₺1.289.774.409,10 | F142: -0.0364 | G142: 18:10:00
A143: OYAK CIMENTO
A144: ECILC | B144: 54.95 | C144: 59.15 | D144: 54.5 | E144: ₺1.251.580.133,95 | F144: 0.0214 | G144: 18:10:00
A145: ECZACIBASI ILAC
A146: CANTE | B146: 18.6 | C146: 19.82 | D146: 17.76 | E146: ₺1.218.034.096,36 | F146: 0.0322 | G146: 18:10:00
A147: CAN2 TERMIK
A148: FROTO | B148: 873.3 | C148: 912.9 | D148: 873.3 | E148: ₺1.204.076.984,10 | F148: -0.0414 | G148: 18:10:00
A149: FORD OTOSAN
A150: MGROS | B150: 381.4 | C150: 407 | D150: 381.4 | E150: ₺1.153.809.620,60 | F150: -0.0344 | G150: 18:10:00
A151: MIGROS TICARET
A152: CIMSA | B152: 245.8 | C152: 260 | D152: 243.1 | E152: ₺1.060.576.880,00 | F152: -0.0285 | G152: 18:10:00
A153: CIMSA
A154: GENIL | B154: 69.6 | C154: 74.8 | D154: 69.4 | E154: ₺1.031.738.386,20 | F154: 0.0235 | G154: 18:10:00
A155: GEN ILAC
A156: HEKTS | B156: 24.64 | C156: 25.2 | D156: 24.64 | E156: ₺1.009.117.190,96 | F156: -0.016 | G156: 18:10:00
A157: HEKTAS
A158: SDTTR | B158: 377 | C158: 387.9 | D158: 359.3 | E158: ₺973.537.397,10 | F158: 0.0406 | G158: 18:10:00
A159: SDT UZAY VE SAVUNMA
A160: ALARK | B160: 125.3 | C160: 129.2 | D160: 124 | E160: ₺955.351.140,70 | F160: -0.0173 | G160: 18:10:00
A161: ALARKO HOLDING
A162: TAVHL | B162: 112.5 | C162: 120.3 | D162: 112.5 | E162: ₺907.649.583,60 | F162: -0.0687 | G162: 18:10:00
A163: TAV HAVALIMANLARI
A164: ALFAS | B164: 151.7 | C164: 156 | D164: 147.3 | E164: ₺902.141.636,40 | F164: -0.0143 | G164: 18:10:00
A165: ALFA SOLAR ENERJI
A166: DOAS | B166: 269.6 | C166: 274.3 | D166: 266.8 | E166: ₺868.993.154,10 | F166: -0.0055 | G166: 18:10:00
A167: DOGUS OTOMOTIV
A168: ASGYO | B168: 21.24 | C168: 22.2 | D168: 21.08 | E168: ₺802.091.369,70 | F168: -0.0121 | G168: 18:10:00
A169: ASCE GMYO
A170: BRYAT | B170: 2460.8 | C170: 2549 | D170: 2284.3 | E170: ₺779.029.086,00 | F170: 0.0562 | G170: 18:10:00
A171: BORUSAN YAT. PAZ.
A172: GESAN | B172: 89.7 | C172: 92 | D172: 88.75 | E172: ₺771.161.143,50 | F172: -0.0202 | G172: 18:10:00
A173: GIRISIM ELEKTRIK SANAYI
A174: TMSN | B174: 122 | C174: 128.4 | D174: 117.6 | E174: ₺733.382.002,90 | F174: -0.0033 | G174: 18:10:00
A175: TUMOSAN MOTOR VE TRAKTOR
A176: TUKAS | B176: 10.95 | C176: 11.15 | D176: 10.56 | E176: ₺725.219.748,04 | F176: 0.0234 | G176: 18:10:00
A177: TUKAS
A178: BERA | B178: 15.36 | C178: 15.63 | D178: 14.44 | E178: ₺710.976.652,39 | F178: 0.0564 | G178: 18:10:00
A179: BERA HOLDING
A180: SOKM | B180: 63.1 | C180: 66.95 | D180: 62.7 | E180: ₺709.215.273,65 | F180: -0.0209 | G180: 18:10:00
A181: SOK MARKETLER TICARET
A182: CWENE | B182: 342.3 | C182: 347.4 | D182: 333 | E182: ₺644.352.971,20 | F182: -0.0141 | G182: 18:10:00
A183: CW ENERJI
A184: PEKGY | B184: 28.2 | C184: 28.24 | D184: 26.36 | E184: ₺637.477.440,60 | F184: 0.0674 | G184: 18:10:00
A185: PEKER GMYO
A186: BRLSM | B186: 39 | C186: 40.2 | D186: 35.6 | E186: ₺637.327.066,52 | F186: 0.0501 | G186: 18:10:00
A187: BIRLESIM MUHENDISLIK
A188: DOHOL | B188: 13.31 | C188: 13.66 | D188: 13.27 | E188: ₺629.021.968,55 | F188: -0.0228 | G188: 18:10:00
A189: DOGAN HOLDING
A190: SMRTG | B190: 72.25 | C190: 73.95 | D190: 70.85 | E190: ₺627.790.326,40 | F190: -0.0116 | G190: 18:10:00
A191: SMART GUNES ENERJISI TEK.
A192: KAYSE | B192: 44.64 | C192: 47.26 | D192: 43.7 | E192: ₺610.056.189,12 | F192: 0.0192 | G192: 18:10:00
A193: KAYSERI SEKER FABRIKASI
A194: AKGRT | B194: 6.32 | C194: 6.86 | D194: 6.23 | E194: ₺605.947.622,83 | F194: -0.0511 | G194: 18:10:00
A195: AKSIGORTA
A196: ISMEN | B196: 36.56 | C196: 38.5 | D196: 36.32 | E196: ₺597.060.444,52 | F196: 0.0083 | G196: 18:10:00
A197: IS Y. MEN. DEG.
A198: ENJSA | B198: 50.2 | C198: 52.7 | D198: 50.2 | E198: ₺558.687.396,55 | F198: -0.0402 | G198: 18:10:00
A199: ENERJISA ENERJI
A200: SOKE | B200: 25 | C200: 26.06 | D200: 24.16 | E200: ₺543.106.331,68 | F200: 0.0549 | G200: 18:10:00
A201: SOKE DEGIRMENCILIK
A202: SAYAS | B202: 87 | C202: 92.4 | D202: 81.65 | E202: ₺542.669.317,90 | F202: 0.0029 | G202: 18:10:00
A203: SAY YENILENEBILIR ENERJI
A204: GOKNR | B204: 28.92 | C204: 29.58 | D204: 27.22 | E204: ₺512.976.869,70 | F204: 0.0656 | G204: 18:10:00
A205: GOKNUR GIDA
A206: TATEN | B206: 58.3 | C206: 58.3 | D206: 47.96 | E206: ₺503.966.478,06 | F206: 0.1 | G206: 18:10:00
A207: TATLIPINAR ENERJI URETIM
A208: YEOTK | B208: 171 | C208: 177.8 | D208: 168.1 | E208: ₺492.068.867,80 | F208: -0.0161 | G208: 18:10:00
A209: YEO TEKNOLOJI ENERJI
A210: TTRAK | B210: 947.1 | C210: 973.8 | D210: 923.5 | E210: ₺486.706.192,70 | F210: 0.0013 | G210: 18:10:00
A211: TURK TRAKTOR
... 923 more rows
